Cogmind - Beta 11 X5 --- EXPLORER MODE // 2021.06.11 @ 18:44:04 Player: Luigi Panache Result: Escaped singularity! Performance ------------- Evolutions (9) 4500 Regions Visited (34) 6800 Robots Destroyed (171) 855 Value Destroyed (10499) 10499 Prototype IDs (98) 1960 Alien Tech Used (12) 2400 Bonus (48406) 48406 TOTAL SCORE: 75420 Bonus ------- High Alert Combat Kills 1102 Follower Combat Kills 1163 Network Hubs Disabled 200 Met Data Miner 300 Met Zhirov 300 Met Warlord at Base 500 MAIN.C Attacked Warlord 500 Built Enhanced Grunts 300 A7 Reached Mainframe 300 Hacked Protovariant 500 Met Warlord at Research 2000 Destroyed MAIN.C Guards 500 Met MAIN.C 5000 Hacked MAIN.C 300 Destroyed MAIN.C Shell 5000 Destroyed MAIN.C 10000 Met Warlord at Command 2000 Met Architect 300 Destroyed A8 300 Destroyed A6 400 Destroyed Architect 15000 Win 3000 Friendly Fire -559 Cogmind --------- Core Integrity 1257/1850 Matter 290/300 Energy 98/100 System Corruption 2% Temperature Cool (0) Movement Core (50) Location Near Former Tau Ceti IV Parts ------- > --- POWER (3) -------- (None) > --- PROPULSION (7) --- (None) > --- UTILITY (14) ----- (None) > --- WEAPON (2) ------- (None) > --- INVENTORY (5) ---- Advanced Heavy Siege Treads Matter Drive Gamma Bomb Array Peak State ------------ > --- POWER ------------ Quantum Reactor Light Quantum Reactor Light Quantum Reactor > --- PROPULSION ------- Experimental Biometal Heavy Treads Experimental Biometal Heavy Treads Experimental Biometal Heavy Treads Experimental Biometal Medium Treads > --- UTILITY ---------- Huge Storage Unit Experimental Sensor Array Experimental Terrain Scan Processor Experimental Armor Integrity Analyzer Advanced Weapon Cycler SHELL Armor AEGIS Remote Shield System Mapper Ghost Barrier System Purifier Matter Drive > --- WEAPON ----------- Hypervelocity Multirail Z-bomb Delivery System > --- INVENTORY -------- Micro Fission Core Biometal Medium Treads Advanced Heavy Siege Treads 2N-1CE's Frost Array Experimental Energy Well Compact Matter Pod Experimental Terrain Scanner Heavy Regenerative Plating Advanced Shield Generator Mini Drone Bay High-powered Transdimensional Reconstructor Subatomic Replicator Spacefold Activator Heavy Proton Cannon Enhanced Nova Cannon Potential Cannon Potential Cannon Null Cannon Compact Tesla Bomb Launcher Gamma Bomb Array [Rating: 275] Favorites ----------- Power Vortex Chain Reactor Engine Ion Engine Power Core Micro Fission Core Reactor Vortex Chain Reactor Propulsion Experimental Biometal Heavy Treads Treads Experimental Biometal Heavy Treads Leg Aluminum Leg Flight Unit Cooled VTOL Module Utility Experimental Terrain Scan Processor Device Experimental Terrain Scanner Storage Huge Storage Unit Processor Experimental Terrain Scan Processor Hackware Improved Hacking Suite Protection SHELL Armor Artifact Matter Drive Weapon Hypervelocity Multirail Energy Gun EM Pulse Gun Energy Cannon Enhanced Nova Cannon Ballistic Gun Hypervelocity Multirail Ballistic Cannon Heavy Hardcell Cannon Launcher Advanced EMP Blaster Special Weapon Advanced Remote Datajack Impact Weapon Hammer Slashing Weapon Katana Piercing Weapon Lance Special Melee Weapon Advanced Datajack Build | -11 -10 -10 -10 -9 -8 -8 -7 -7 -7 -7 -6 -6 -6 -6 -6 -6 -5 -5 -5 -5 -4 -4 -4 -4 -4 -3 -3 -3 -3 -2 -2 -1 -1 -1 ------- Run | Scr Mat Min Exi Min Mat Sto Fac Low Low Dat Pro Fac Ext Cet Arc Hub Fac Upp Upp War Pro Fac Upp Upp Zhi Pro Res Qua Sec Res Tes Acc Com Ac0 Slots Evolved 18 | . 1 . . . 4 . 2 . . . . 2 . . . . 2 . . . . 2 . . . . 2 . . 2 . 1 . . Power 1 | . . . . . . . . . . . . . . . . . 1 . . . . . . . . . . . . . . . . . Propulsion 5 | . . . . . 2 . 1 . . . . 1 . . . . 1 . . . . . . . . . . . . . . . . . Utility 12 | . 1 . . . 2 . 1 . . . . 1 . . . . . . . . . 2 . . . . 2 . . 2 . 1 . . Weapon . | . . . . . . . . . . . . . . . . . . . . . . . . . . . . . . . . . . . Parts Attached 280 | 2 9 3 . 1 9 13 15 1 1 2 6 10 7 7 4 . 6 . 1 9 1 12 3 4 10 . 5 17 24 8 22 5 55 8 Power 25 | . 1 . . . . . 2 . . . 1 . 1 1 . . 2 . . . . . . 1 4 . 1 1 . 2 . 2 5 1 Engine 6 | . 1 . . . . . . . . . . . 1 1 . . 2 . . . . . . . 1 . . . . . . . . . Core 9 | . . . . . . . 2 . . . 1 . . . . . . . . . . . . 1 1 . 1 1 . 2 . . . . Reactor 10 | . . . . . . . . . . . . . . . . . . . . . . . . . 2 . . . . . . 2 5 1 Propulsion 56 | 2 4 . . . 6 5 5 . . . . 8 1 1 . . 2 . . 2 . 1 . . . . . 1 8 1 5 . 1 3 Treads 22 | 2 3 . . . 6 3 . . . . . . . . . . . . . . . . . . . . . . . . 4 . 1 3 Leg . | . . . . . . . . . . . . . . . . . . . . . . . . . . . . . . . . . . . Wheel . | . . . . . . . . . . . . . . . . . . . . . . . . . . . . . . . . . . . Hover . | . . . . . . . . . . . . . . . . . . . . . . . . . . . . . . . . . . . Flight 34 | . 1 . . . . 2 5 . . . . 8 1 1 . . 2 . . 2 . 1 . . . . . 1 8 1 1 . . . Utility 140 | . 4 2 . . 2 1 7 1 1 1 5 2 5 2 4 . . . . 6 . 10 3 2 6 . 4 12 16 1 12 2 26 3 Device 66 | . 1 2 . . . . 2 . 1 . 3 . 1 . 1 . . . . 1 . 4 3 2 5 . 3 7 8 . 2 2 16 2 Storage 10 | . 1 . . . . . 1 . . . . . . . . . . . . 1 . . . . . . . 3 . . 3 . 1 . Processor 11 | . . . . . . . 1 . . . . 1 2 . . . . . . 1 . 3 . . . . . . . . . . 2 1 Hackware 10 | . . . . . . . 2 . . . . 1 1 . 2 . . . . . . 1 . . . . 1 . . . 2 . . . Protection 27 | . 2 . . . 2 1 1 1 . 1 2 . 1 2 1 . . . . 3 . 2 . . 1 . . 1 1 . 1 . 4 . Artifact 16 | . . . . . . . . . . . . . . . . . . . . . . . . . . . . 1 7 1 4 . 3 . Weapon 59 | . . 1 . 1 1 7 1 . . 1 . . . 3 . . 2 . 1 1 1 1 . 1 . . . 3 . 4 5 1 23 1 Energy Gun . | . . . . . . . . . . . . . . . . . . . . . . . . . . . . . . . . . . . Energy Cannon 25 | . . . . . . . . . . . . . . . . . . . . . . . . 1 . . . 2 . 2 1 1 17 1 Ballistic Gun 11 | . . . . 1 1 4 . . . . . . . . . . . . . . . . . . . . . . . . 2 . 3 . Ballistic Cannon 1 | . . . . . . . . . . . . . . . . . . . . . . . . . . . . . . . . . 1 . Launcher 8 | . . 1 . . . 1 . . . . . . . 2 . . 1 . . 1 . . . . . . . 1 . . . . 1 . Special Weapon 1 | . . . . . . . . . . . . . . . . . . . . . . . . . . . . . . . . . 1 . Impact Weapon 1 | . . . . . . 1 . . . . . . . . . . . . . . . . . . . . . . . . . . . . Slashing Weapon 6 | . . . . . . 1 1 . . 1 . . . 1 . . 1 . . . 1 . . . . . . . . . . . . . Piercing Weapon 5 | . . . . . . . . . . . . . . . . . . . 1 . . 1 . . . . . . . 1 2 . . . Special Melee Weapon 1 | . . . . . . . . . . . . . . . . . . . . . . . . . . . . . . 1 . . . . Unidentified Prototypes 44 | . 1 1 . . . 3 . . . . . 1 . . . . . . . 4 . 1 1 . 3 . . 4 8 . 7 . 10 . Parts Lost 23 | . . . . . . . . . . 1 . . 7 1 . . . . . . . 4 . . . . . 4 . . . 1 2 3 Power 5 | . . . . . . . . . . 1 . . 1 . . . . . . . . 2 . . . . . . . . . 1 . . Propulsion 2 | . . . . . . . . . . . . . 2 . . . . . . . . . . . . . . . . . . . . . Utility 14 | . . . . . . . . . . . . . 4 1 . . . . . . . 2 . . . . . 3 . . . . 2 2 Weapon 2 | . . . . . . . . . . . . . . . . . . . . . . . . . . . . 1 . . . . . 1 Highest Loss Streak 4 | . . . . . . . . . . 1 . . 4 1 . . . . . . . 2 . . . . . 4 . . . 1 1 2 Average Slot Usage (%) 83 | . 99 100 100 100 100 99 97 100 100 100 92 97 92 99 99 100 93 94 94 94 94 89 95 94 94 95 92 88 93 91 86 77 71 67 Engine 2 | . 12 12 12 12 8 8 . . . . . . 2 6 6 6 10 11 11 11 11 9 10 5 3 . . . . . . . . . Core 2 | . . . . . . . 6 7 7 7 . 6 2 . . . . . . . . . . 4 5 5 4 6 8 11 12 6 . . Reactor 3 | . . . . . . . . . . . . . . . . . . . . . . . . . 1 5 4 2 . . . 2 7 6 Treads 11 | . 25 25 25 25 33 32 . . . . . . . . . . . . . . . . . . . . . . . . 8 15 15 14 Flight 10 | . . . . . . . 33 35 35 35 35 35 34 36 37 37 33 33 33 33 33 30 30 30 30 30 27 27 26 24 11 . . . Device 13 | . 11 12 12 12 8 8 6 7 7 2 6 6 4 . 2 . . . . . . 3 10 9 8 5 9 10 12 12 9 11 19 21 Storage 4 | . 12 12 12 12 8 8 7 7 7 7 7 6 6 6 6 6 5 5 5 5 5 5 5 5 5 5 4 7 5 4 4 3 3 2 Processor 6 | . . . . . . . 6 7 7 7 7 6 5 12 7 6 5 5 5 5 5 10 15 15 15 15 13 9 8 8 8 7 7 7 Hackware 6 | . . . . . . . 13 14 14 14 14 17 14 12 16 18 16 16 16 16 16 15 15 15 15 15 15 13 13 12 14 11 2 . Protection 6 | . 12 12 12 12 25 25 7 7 7 11 7 6 7 12 9 12 11 11 11 11 11 7 . . 1 5 4 3 3 4 3 3 4 6 Artifact 1 | . . . . . . . . . . . . . . . . . . . . . . . . . . . . . 3 7 6 6 2 . Energy Cannon 1 | . . . . . . . . . . . . . . . . . . . . . . . . 3 5 5 4 1 4 4 1 2 1 2 Ballistic Gun 3 | . 12 12 12 22 16 13 7 7 7 1 . . . . . . . . . . . . . . . . . . . . 2 3 2 . Slashing Weapon 1 | . . . . . . 1 6 7 7 12 14 12 12 6 6 6 10 11 6 5 5 5 5 1 . . . . . . . . . . Naked Turns 5 | . . . . . . . . . . . . . . . . . . . . . . . . . . . . . . . . . . 5 Heaviest Build 235 | 22 35 36 36 36 45 47 45 24 24 24 25 25 25 32 32 32 37 37 38 44 38 40 21 35 45 45 46 50 49 54 138 174 235 233 Greatest Support 295 | 40 40 40 40 40 82 82 82 25 25 25 25 26 34 33 33 39 47 41 41 41 40 42 24 39 47 47 47 52 59 59 290 255 295 295 Greatest Overweight (x) 12 | 1 . . . . . . . . . . . . . . 10 . . . . 1 . . . . 12 . . . . . . . . . Average Overweight (x) . | . . . . . . . . . . . . . . . 2 . . . . . . . . . . . . . . . . . . . Largest Inventory Capacity 25 | 10 15 15 15 15 15 15 15 10 10 10 10 10 10 10 10 10 10 10 10 10 10 10 10 10 10 10 10 10 10 10 25 25 25 25 Average Capacity 18 | 10 14 15 15 15 15 15 10 10 10 10 10 10 10 10 10 10 10 10 10 10 10 10 10 10 10 10 10 10 10 10 18 25 25 24 Most Carried 25 | 7 15 15 15 15 15 15 15 10 9 9 9 10 10 10 9 10 10 10 10 10 10 10 9 10 10 10 10 10 10 10 19 25 25 24 Average Carried 18 | 6 9 14 15 15 14 15 9 9 9 9 9 9 9 8 8 9 9 10 10 10 10 8 9 9 9 10 9 9 9 9 15 24 24 23 Final Capacity 25 | 10 15 15 15 15 15 15 10 10 10 10 10 10 10 10 10 10 10 10 10 10 10 10 10 10 10 10 10 10 10 10 25 25 25 5 Final Carried 25 | 6 15 15 15 15 15 15 10 9 9 9 9 10 9 8 9 10 10 10 10 10 10 10 9 10 10 10 10 10 10 10 19 25 24 5 Class Distribution -------------------- 37% | Generator-Mutant 18% | Hacker-Sprinter 13% | Hacker-Mutant 9% | Wizard-Mutant 6% | Hacker-Ninja 4% | Hacker-Scout 3% | Wizard-Assassin Dominant Class ---------------- Hacker-Mutant | -10/Materials Hacker-Mutant | -10/Mines Hacker-Mutant | -10/Exiles Hacker-Mutant | -9/Mines Hacker-Mutant | -8/Materials Commander-Mutant | -8/Storage Hacker-Sprinter | -7/Factory Hacker-Sprinter | -7/Lower Caves Hacker-Sprinter | -7/Lower Caves Hacker-Sprinter | -7/Data Miner Hacker-Sprinter | -6/Proximity Caves Hacker-Sprinter | -6/Factory Hacker-Sprinter | -6/Extension Hacker-Sprinter | -6/Cetus Hacker-Mutant | -6/Archives Hacker-Sprinter | -6/Hub_04(d) Hacker-Sprinter | -5/Factory Hacker-Sprinter | -5/Upper Caves Hacker-Sprinter | -5/Upper Caves Hacker-Sprinter | -5/Warlord Hacker-Sprinter | -4/Proximity Caves Hacker-Scout | -4/Factory Hacker-Scout | -4/Upper Caves Hacker-Scout | -4/Upper Caves Hacker-Scout | -4/Zhirov Hacker-Scout | -3/Proximity Caves Wizard-Scout | -3/Research Hacker-Scout | -3/Quarantine Hacker-Ninja | -3/Section 7 Hacker-Ninja | -2/Research Wizard-Assassin | -2/Testing Wizard-Mutant | -1/Access Generator-Mutant | -1/Command Generator-Mutant | -1/Access_0 Resources | -11 -10 -10 -10 -9 -8 -8 -7 -7 -7 -7 -6 -6 -6 -6 -6 -6 -5 -5 -5 -5 -4 -4 -4 -4 -4 -3 -3 -3 -3 -2 -2 -1 -1 -1 ----------- Run | Scr Mat Min Exi Min Mat Sto Fac Low Low Dat Pro Fac Ext Cet Arc Hub Fac Upp Upp War Pro Fac Upp Upp Zhi Pro Res Qua Sec Res Tes Acc Com Ac0 Matter Collected 3948 | 220 107 81 . 60 263 191 30 86 . . 221 56 84 94 67 . 60 . 10 . 51 149 30 60 110 . . . 177 246 139 417 899 40 Remotely . | . . . . . . . . . . . . . . . . . . . . . . . . . . . . . . . . . . . Salvage Created 8838 | . 214 126 . 25 583 286 53 52 . . 52 84 418 131 204 119 60 135 531 . 51 650 42 57 214 . . 275 48 174 350 775 2316 813 Parts 437 | . 13 9 . 5 38 10 3 2 . . 4 9 20 9 9 9 4 8 10 . 3 37 . 7 2 . . 14 3 3 22 38 132 14 Haulers Intercepted 3 | . 1 . . . . . . . . . . . . . . . . . . . . . . . . . . . . 1 1 . . . Recyclers Shooed 2 | . . . . . 1 . . . . . . . . . . . . . . . . . . . . . . . . . . 1 . . Parts Field Recycled . | . . . . . . . . . . . . . . . . . . . . . . . . . . . . . . . . . . . Retrieved Matter . | . . . . . . . . . . . . . . . . . . . . . . . . . . . . . . . . . . . Parts Self-Destructed . | . . . . . . . . . . . . . . . . . . . . . . . . . . . . . . . . . . . Prevented . | . . . . . . . . . . . . . . . . . . . . . . . . . . . . . . . . . . . Kills | -11 -10 -10 -10 -9 -8 -8 -7 -7 -7 -7 -6 -6 -6 -6 -6 -6 -5 -5 -5 -5 -4 -4 -4 -4 -4 -3 -3 -3 -3 -2 -2 -1 -1 -1 ------- Run | Scr Mat Min Exi Min Mat Sto Fac Low Low Dat Pro Fac Ext Cet Arc Hub Fac Upp Upp War Pro Fac Upp Upp Zhi Pro Res Qua Sec Res Tes Acc Com Ac0 Combat Hostiles Destroyed 117 | . 6 4 . 3 10 3 . 2 . . 2 . 4 2 . 1 1 4 . . 1 8 . 1 . . . 2 . . 2 9 30 22 Melee 25 | . . . . . . . . 2 . . 2 . 4 . . . 1 4 . . 1 8 . 1 . . . 2 . . . . . . Guns 50 | . 6 4 . 1 10 3 . . . . . . . . . . . . . . . . . . . . . . . . 2 9 15 . Cannons 23 | . . . . . . . . . . . . . . . . . . . . . . . . . . . . . . . . . 12 11 AOE 12 | . . . . 2 . . . . . . . . . 1 . 1 . . . . . . . . . . . . . . . . . 8 Classes Destroyed 13 | . 3 . . . 4 2 1 . . . . . 1 . . . . 1 . . . . 1 . . . . . . . . . . . Worker 10 | . . . . . . 1 1 . . . . . . . . 3 . . . . . 1 . . . . . . . . 1 1 2 . Builder 2 | . . . . . . . 1 . . . . . 1 . . . . . . . . . . . . . . . . . . . . . Hauler 3 | . 1 . . . . . . . . . . . . . . . . . . . . . . . . . . . . 1 1 . . . Recycler 5 | . . . . . . 1 . . . . . . 1 . . . . . . . . 1 . . . . . 1 . . . . 1 . Minesweeper 2 | . . . . . . . . . . . . . . . . . . 1 1 . . . . . . . . . . . . . . . Operator 14 | . . . . . 3 . 1 . . . . 1 . 1 6 . . . . . . . . . . . . . . 1 . . 1 . Watcher 18 | . . . . . 2 1 . . . . . 2 . . . . . . . . . 2 . . . . . 1 1 1 2 3 3 . Swarmer 21 | . 4 2 . 3 2 . . 2 . . 2 . . . . . . 4 . . . 2 . . . . . . . . . . . . Grunt 15 | . 2 2 . . 3 . . . . . . . 2 . . . . . . . . 3 . . . . . . . . . 3 . . Sentry 12 | . . . . . 4 3 . . . . . . 1 . . 1 . . . . . . . . . . . . . . . . 3 . Hunter 8 | . . . . . 1 . . . . . . . . . . . . . . . . . . . . . . . . . . 1 6 . Programmer 34 | . . . . . . . . . . . . . 1 . . . 1 . . . 1 3 . 1 . . . 2 . . 2 5 18 . Cetus Guard 2 | . . . . . . . . . . . . . . 2 . . . . . . . . . . . . . . . . . . . . M Guard 2 | . . . . . . . . . . . . . . . . . . . . . . . . . . . . . . . . . 2 . Enhanced Grunt 14 | . . . . . . . . . . . . . . . . . . . . . . . . . . . . . . . . . . 14 Enhanced Sentry 1 | . . . . . . . . . . . . . . . . . . . . . . . . . . . . . . . . . . 1 Enhanced Hunter 4 | . . . . . . . . . . . . . . . . . . . . . . . . . . . . . . . . . . 4 Combat Programmer 1 | . . . . . . . . . . . . . . . . . . . . . . . . . . . . . . . . . 1 . Samaritan 1 | . . . . . . . . . . . . . . . . . . . . . . . 1 . . . . . . . . . . . Best Kill Streak 6 | . 4 2 . 3 4 2 1 2 . . 2 2 3 2 3 4 1 5 1 . 1 4 . 1 . . . 1 1 1 2 5 5 6 Combat Bots Only 6 | . 4 2 . 3 3 1 . 2 . . 2 . 1 2 . 1 1 4 . . 1 2 . 1 . . . 1 . . 1 3 5 6 Max Kills in Single Turn 4 | . 2 2 . 2 1 1 1 1 . . 1 1 1 2 1 4 1 1 1 . 1 1 1 1 . . . 1 1 1 2 1 1 1 Gunslinging 1 | . 1 1 . . . . . . . . . . . . . . . . . . . . . . . . . . . . . . . . Exploded 2 | . . . . 2 . . . . . . . . . 1 . 1 . . . . . . . . . . . . . . . . . 1 Melee 1 | . . . . . . . . 1 . . 1 . 1 . . . 1 1 . . 1 1 . 1 . . . 1 . . . . . . Uniques/NPCs Destroyed 3 | . . . . . . . . . . . . . . . . . . . . . . . . . . . . . . . . . . 3 A8 (-1/Access_0) A6 (-1/Access_0) Architect (-1/Access_0) Combat | -11 -10 -10 -10 -9 -8 -8 -7 -7 -7 -7 -6 -6 -6 -6 -6 -6 -5 -5 -5 -5 -4 -4 -4 -4 -4 -3 -3 -3 -3 -2 -2 -1 -1 -1 -------- Run | Scr Mat Min Exi Min Mat Sto Fac Low Low Dat Pro Fac Ext Cet Arc Hub Fac Upp Upp War Pro Fac Upp Upp Zhi Pro Res Qua Sec Res Tes Acc Com Ac0 Damage Taken 10530 | . 87 94 . 31 548 239 35 86 . 122 24 . 442 50 64 100 68 111 . . 13 439 . 44 . . . 662 434 114 336 302 2500 3585 Core 1549 | . 4 2 . . 22 23 . . . 31 13 . 50 8 . 41 . 20 . . 13 34 . . . . . 171 410 68 306 67 130 136 Absorbed by Shields 2748 | . . . . . . . . . . . . . 97 30 . . . . . . . . . . . . . . . . . . 345 2276 Reduced by Siege Mode 35 | . . . . . . . . . . . . . . . . . . . . . . . . . . . . . . . . . 25 10 Core Remaining (%) 86 | 100 . . . 97 . 91 . . . . 93 . . . . 88 . . . . 96 . . . . 97 . . 57 . 78 . . 67 Volleys Fired 559 | . 19 10 . 2 56 17 . . . . . . . 2 1 . . . . . . . . 7 . 4 6 21 25 12 18 46 199 114 Largest 2 | . 2 2 . 2 2 2 . . . . . . . 1 1 . . . . . . . . 1 . 1 1 1 1 1 1 1 2 1 Hottest 200 | . 60 60 . 40 43 50 . . . . . . . 36 36 . . . . . . . . 110 . 110 110 110 110 120 120 120 200 200 Shots Fired 706 | . 38 17 . 3 112 34 . . . . . . . 2 1 . . . . . . . . 7 . 4 6 20 25 12 18 46 247 114 Gun 318 | . 38 14 . 2 112 34 . . . . . . . . . . . . . . . . . . . . . . . . 4 42 72 . Cannon 380 | . . . . . . . . . . . . . . . . . . . . . . . . 7 . 4 6 20 25 12 14 4 174 114 Launcher 7 | . . 3 . 1 . . . . . . . . . 2 1 . . . . . . . . . . . . . . . . . . . Special 1 | . . . . . . . . . . . . . . . . . . . . . . . . . . . . . . . . . 1 . Kinetic 292 | . 19 7 . 2 112 34 . . . . . . . . . . . . . . . . . . . . . . . . 4 42 72 . Thermal 350 | . . . . . . . . . . . . . . . . . . . . . . . . 7 . 4 6 4 25 12 14 4 160 114 Explosive 4 | . . 3 . 1 . . . . . . . . . . . . . . . . . . . . . . . . . . . . . . Electromagnetic 59 | . 19 7 . . . . . . . . . . . 2 1 . . . . . . . . . . . . 16 . . . . 14 . Robot Hit Streak 43 | . 16 23 . 3 22 24 . . . . . . . 4 . . . . . . . . . . . . . 23 24 . 30 18 43 14 Robot Miss Streak 3 | . 2 1 . . 1 1 . . . . . . . . . . . . . . . . . . . . . . . . 1 3 3 2 Penetration Max 1 | . . . . . . . . . . . . . . . . . . . . . . . . . . . . . . . 1 . . . Secondary Targets 3 | . 1 2 . . . . . . . . . . . . . . . . . . . . . . . . . . . . . . . . Max Gunslinging Chain 1 | . 1 1 . . . . . . . . . . . . . . . . . . . . . . . . . . . . . . . . Shots Hit Robots 639 | . 30 15 . 2 97 31 9 6 . 1 2 6 14 2 18 1 5 11 21 . 1 36 1 1 3 . . 35 2 13 14 39 132 91 Core Hits 380 | . 10 10 . 3 41 9 3 2 . . 2 3 7 7 10 12 2 5 12 . 1 18 1 1 3 . . 10 1 4 8 36 79 80 Critical Kills 42 | . . . . . . . . . . . . . . . . . . . . . . . . . . . . . . . 4 13 22 3 Critical Parts Destroyed 64 | . . . . . . . . . . . . . . . . . . . . . . . . . . . . . . . 3 22 39 . Critical Strikes 123 | . 1 1 . . . . . . . . . . 1 . . . . 1 2 . . 3 . . . . . 1 . . 7 35 68 3 Meltdown 6 | . . . . . . . . . . . . . . . . . . . . . . . . . . . . . . . 1 . 2 3 Destroy 107 | . . . . . . . . . . . . . . . . . . . . . . . . . . . . . . . 6 35 66 . Corrupt 2 | . 1 1 . . . . . . . . . . . . . . . . . . . . . . . . . . . . . . . . Sever 2 | . . . . . . . . . . . . . 1 . . . . 1 . . . . . . . . . . . . . . . . Puncture 6 | . . . . . . . . . . . . . . . . . . . 2 . . 3 . . . . . 1 . . . . . . Melee Attacks 319 | . . . . . . 9 14 10 6 6 3 41 23 1 18 5 11 13 22 . 1 48 10 3 3 5 4 21 8 14 15 5 . . Impact 9 | . . . . . . 9 . . . . . . . . . . . . . . . . . . . . . . . . . . . . Slashing 167 | . . . . . . . 14 10 6 6 3 41 23 1 18 5 11 13 3 . . 6 6 1 . . . . . . . . . . Piercing 140 | . . . . . . . . . . . . . . . . . . . 19 . 1 42 4 2 3 5 4 21 8 11 15 5 . . Sneak Attacks 31 | . . . . . . 2 3 . . 1 . 1 5 . 5 . . 1 2 . . 4 1 . . . . . . 5 1 . . . Combat Hostiles 2 | . . . . . . . . . . . . . 2 . . . . . . . . . . . . . . . . . . . . . Follow-up Attacks 12 | . . . . . . . . . . . . 1 3 . . . 1 2 1 . . 4 . . . . . . . . . . . . Damage Inflicted 44538 | . 386 252 . 131 984 598 579 191 . 121 56 295 796 742 1257 864 169 443 2172 . 44 1825 108 44 300 . . 1115 53 673 593 566 6470 22711 Guns 3445 | . 344 142 . 15 984 505 . . . . . . . . . . . . . . . . . . . . . . . . 61 566 828 . Cannons 18004 | . . . . . . . . . . . . . . . . . . . . . . . . . . . . 533 . . 130 . 4660 12681 Explosions 12757 | . 42 109 . 111 . . . . . . . . . 696 25 827 . . . . . . . . . . . . . . . . 972 9975 Melee 10261 | . . . . . . 93 579 191 . 121 56 295 796 46 1232 37 169 443 2172 . 44 1825 108 44 300 . . 582 53 673 402 . . . Ramming 71 | . . 1 . 5 . . . . . . . . . . . . . . . . . . . . . . . . . . . . 10 55 Kinetic 3188 | . 166 63 . 15 984 505 . . . . . . . . . . . . . . . . . . . . . . . . 61 566 828 . Thermal 28967 | . 42 . . . . . . . . . . . . 589 . . . . . . . . . . . . . 122 . . 130 . 5428 22656 Explosive 220 | . . 109 . 111 . . . . . . . . . . . . . . . . . . . . . . . . . . . . . . Electromagnetic 1831 | . 178 79 . . . . . . . . . . . 107 25 827 . . . . . . . . . . . 411 . . . . 204 . Impact 93 | . . . . . . 93 . . . . . . . . . . . . . . . . . . . . . . . . . . . . Slashing 4365 | . . . . . . . 579 191 . 121 56 295 796 46 1232 37 169 443 188 . . 168 . 44 . . . . . . . . . . Piercing 5803 | . . . . . . . . . . . . . . . . . . . 1984 . 44 1657 108 . 300 . . 582 53 673 402 . . . Highest Corruption 7 | . . . . . . 1 . . . . . 1 3 3 3 1 . . . . . 1 1 1 1 . . 6 . . . 3 7 2 Average Corruption 1 | . . . . . . 1 . . . . . 1 2 3 2 1 . . . . . 1 1 1 1 . . 3 . . . 1 1 1 Corruption Purged 22 | . . . . . . . . . . . . . . . 3 . . . . . . . . . 1 . . 6 . . . 3 9 . Effects 64 | . . . . . . . . . . . . 3 8 6 4 . . . . . . . 2 1 . . . 6 . . . 4 21 9 Message Errors 23 | . . . . . . . . . . . . 3 2 1 2 . . . . . . . 1 . . . . 1 . . . 1 8 4 Matter Fused 8 | . . . . . . . . . . . . . 1 1 2 . . . . . . . . . . . . 2 . . . . 2 . Heat Flow Errors 6 | . . . . . . . . . . . . . 1 2 . . . . . . . . . . . . . 1 . . . 1 . 1 Energy Discharges 11 | . . . . . . . . . . . . . 2 1 . . . . . . . . 1 . . . . 1 . . . 2 4 . Data Loss (minor) 13 | . . . . . . . . . . . . . 2 1 . . . . . . . . . 1 . . . . . . . . 5 4 Data Loss (major) 1 | . . . . . . . . . . . . . . . . . . . . . . . . . . . . . . . . . 1 . Misfires 1 | . . . . . . . . . . . . . . . . . . . . . . . . . . . . . . . . . 1 . Weapon Failures 1 | . . . . . . . . . . . . . . . . . . . . . . . . . . . . 1 . . . . . . Overload Shots . | . . . . . . . . . . . . . . . . . . . . . . . . . . . . . . . . . . . Overflow Damage 3608 | . . 10 . . . 12 279 11 . . . 92 115 . 451 2 3 5 635 . . 179 . . . . . 41 . 130 68 . 105 1470 Projectiles 1355 | . . . . . . . . . . . . . . . . . . . . . . . . . . . . 19 . . . . 105 1231 Explosions 249 | . . 10 . . . . . . . . . . . . . . . . . . . . . . . . . . . . . . . 239 Melee 2004 | . . . . . . 12 279 11 . . . 92 115 . 451 2 3 5 635 . . 179 . . . . . 22 . 130 68 . . . Knockbacks 3 | . . . . . . 1 . . . . . . . . . . . . . . . . . . . . . . . . . . . 2 Impact 3 | . . . . . . 1 . . . . . . . . . . . . . . . . . . . . . . . . . . . 2 Kinetic . | . . . . . . . . . . . . . . . . . . . . . . . . . . . . . . . . . . . Secondary . | . . . . . . . . . . . . . . . . . . . . . . . . . . . . . . . . . . . Self-Inflicted Damage 851 | . . 21 . 25 . . . . . . . . . . . 70 . . . . . . . . . . . . . . . . 74 661 Shots 17 | . . 2 . 1 . . . . . . . . . . . 1 . . . . . . . . . . . . . . . . 1 12 Rammed 8 | . . 1 . 1 . . . . . . . . . . . . . . . . . . . . . . . . . . . . 2 4 Targets Rammed 8 | . . 1 . 1 . . . . . . . . . . . . . . . . . . . . . . . . . . . . 2 4 Kicked . | . . . . . . . . . . . . . . . . . . . . . . . . . . . . . . . . . . . Crushed . | . . . . . . . . . . . . . . . . . . . . . . . . . . . . . . . . . . . Highest Temperature 334 | . 96 129 . 10 334 137 12 . . 6 . . 235 98 4 208 62 100 32 60 . 21 . 134 . 144 112 106 116 . . 52 48 210 Average Temperature 46 | . 28 52 . 7 76 45 8 . . 6 . . 94 56 4 110 21 42 14 30 . 5 . 62 . 58 55 69 46 . . 28 21 97 Received Heat Transfer 1293 | . 51 54 . . 324 108 18 9 . 24 9 . 66 . 9 . . . . . . 72 . . . . . 18 9 9 . 36 255 222 Effects 1 | . . . . . 1 . . . . . . . . . . . . . . . . . . . . . . . . . . . . . Energy Bleed 1 | . . . . . 1 . . . . . . . . . . . . . . . . . . . . . . . . . . . . . Siege Activations 3 | . . . . . . . . . . . . . . . . . . . . . . . . . . . . . . . 1 . 1 1 Total Turns 40 | . . . . . . . . . . . . . . . . . . . . . . . . . . . . . . . 14 . 21 5 Longest Duration 21 | . . . . . . . . . . . . . . . . . . . . . . . . . . . . . . . 14 . 21 5 Robots Corrupted 1 | . . . . . . . . . . . . . . . . . . . . . . . . . . . . . . . . . 1 . Combat Hostiles 1 | . . . . . . . . . . . . . . . . . . . . . . . . . . . . . . . . . 1 . Parts Fried 2 | . 1 . . . . 1 . . . . . . . . . . . . . . . . . . . . . . . . . . . . Impact Corruptions 1 | . . . . . . 1 . . . . . . . . . . . . . . . . . . . . . . . . . . . . Robots Melted 7 | . . . . . . . . . . . . . . 1 . . . . . . . . . . . . . . . . 1 . 2 3 Combat Hostiles 6 | . . . . . . . . . . . . . . 1 . . . . . . . . . . . . . . . . . . 2 3 Parts Melted 15 | . . . . . . 1 . . . . . . . 1 . . . . . . . . . . . . . . . . 1 . 10 2 Heat Transferred 11177 | . . . . . . . . . . . . . . 300 . . . . . . . . . . . . . 75 . . 111 . 2063 8628 Parts Sabotaged . | . . . . . . . . . . . . . . . . . . . . . . . . . . . . . . . . . . . Parts Stolen . | . . . . . . . . . . . . . . . . . . . . . . . . . . . . . . . . . . . Parts Stripped . | . . . . . . . . . . . . . . . . . . . . . . . . . . . . . . . . . . . Power Chain Reactions 5 | . 1 . . . . . . . . . . . . 3 . . . . . . . . . . . . . . . . . . 1 . Missiles Intercepted 12 | . . . . . . . . . . . . . . . . . . . . . . . . . . . . . . . . . 12 . Alert | -11 -10 -10 -10 -9 -8 -8 -7 -7 -7 -7 -6 -6 -6 -6 -6 -6 -5 -5 -5 -5 -4 -4 -4 -4 -4 -3 -3 -3 -3 -2 -2 -1 -1 -1 ------- Run | Scr Mat Min Exi Min Mat Sto Fac Low Low Dat Pro Fac Ext Cet Arc Hub Fac Upp Upp War Pro Fac Upp Upp Zhi Pro Res Qua Sec Res Tes Acc Com Ac0 Peak Influence 692 | . 174 104 . 70 239 377 218 . . . . 225 288 170 179 441 692 . . . . 322 . . . . 44 79 88 110 276 195 472 . Initial 158 | . . 4 . . 19 51 124 . . . . 24 5 120 47 42 158 . . . . 14 . . . . . 18 5 4 14 3 1 . Average 99 | . 35 39 . 59 96 198 92 . . . . 55 87 158 138 97 362 . . . . 134 . . . . 24 41 28 57 136 72 159 . Maximum Alert Level 2 | . . . . . 1 1 1 . . . . 1 1 . . 2 2 . . . . 1 . . . . . . . . 1 . 2 . Low Security (%) 91 | 100 100 100 . 100 78 58 98 . . . . 89 82 100 100 82 40 . . . . 75 . . . . 100 100 100 100 69 100 92 . Level 1 8 | . . . . . 21 41 1 . . . . 10 17 . . . 19 . . . . 24 . . . . . . . . 30 . 6 . Level 2 . | . . . . . . . . . . . . . . . . 17 39 . . . . . . . . . . . . . . . . . Level 3 . | . . . . . . . . . . . . . . . . . . . . . . . . . . . . . . . . . . . Level 4 . | . . . . . . . . . . . . . . . . . . . . . . . . . . . . . . . . . . . Level 5 . | . . . . . . . . . . . . . . . . . . . . . . . . . . . . . . . . . . . High Security . | . . . . . . . . . . . . . . . . . . . . . . . . . . . . . . . . . . . Max Security . | . . . . . . . . . . . . . . . . . . . . . . . . . . . . . . . . . . . Squads Dispatched 36 | . . . . . 2 2 2 . . . . 2 3 . . 2 3 . . . . 2 . . . . . . . 1 8 2 7 . Investigation 9 | . . . . . 1 . 1 . . . . 1 1 . . . 2 . . . . 1 . . . . . . . 1 . . 1 . Extermination 10 | . . . . . . . . . . . . . . . . . . . . . . 1 . . . . . . . . 2 2 5 . Reinforcement 13 | . . . . . 1 1 1 . . . . 1 2 . . 1 1 . . . . . . . . . . . . . 4 . 1 . Assault 2 | . . . . . . . . . . . . . . . . 1 . . . . . . . . . . . . . . 1 . . . Garrison 2 | . . . . . . 1 . . . . . . . . . . . . . . . . . . . . . . . . 1 . . . Intercept . | . . . . . . . . . . . . . . . . . . . . . . . . . . . . . . . . . . . Construction Impeded 1 | . . . . . . . . . . . . . 1 . . . . . . . . . . . . . . . . . . . . . Haulers Reinforced . | . . . . . . . . . . . . . . . . . . . . . . . . . . . . . . . . . . . Cargo Convoy Interrupts . | . . . . . . . . . . . . . . . . . . . . . . . . . . . . . . . . . . . Stealth | -11 -10 -10 -10 -9 -8 -8 -7 -7 -7 -7 -6 -6 -6 -6 -6 -6 -5 -5 -5 -5 -4 -4 -4 -4 -4 -3 -3 -3 -3 -2 -2 -1 -1 -1 --------- Run | Scr Mat Min Exi Min Mat Sto Fac Low Low Dat Pro Fac Ext Cet Arc Hub Fac Upp Upp War Pro Fac Upp Upp Zhi Pro Res Qua Sec Res Tes Acc Com Ac0 Distress Signals 45 | . . . . . 1 2 1 . . . . 2 . 1 . 1 2 . . . . 1 . . . . . 1 . 12 1 1 19 . Communications Jammed . | . . . . . . . . . . . . . . . . . . . . . . . . . . . . . . . . . . . Distress Signals . | . . . . . . . . . . . . . . . . . . . . . . . . . . . . . . . . . . . Times Spotted 309 | . 9 6 . 3 21 18 5 5 . 4 4 15 16 4 10 22 8 5 1 4 1 20 . 2 . . 1 9 5 6 6 13 41 45 Peak Tracking Total 23 | . 2 2 . 3 4 6 3 3 . 4 2 6 6 4 1 23 6 4 1 4 1 4 . 1 . . 1 4 2 3 3 3 4 6 Tactical Retreats 16 | . . 1 . . . 1 . . . . 1 2 2 . . . . 1 1 . . 4 . . . . . . 2 1 . . . . Traps | -11 -10 -10 -10 -9 -8 -8 -7 -7 -7 -7 -6 -6 -6 -6 -6 -6 -5 -5 -5 -5 -4 -4 -4 -4 -4 -3 -3 -3 -3 -2 -2 -1 -1 -1 ------- Run | Scr Mat Min Exi Min Mat Sto Fac Low Low Dat Pro Fac Ext Cet Arc Hub Fac Upp Upp War Pro Fac Upp Upp Zhi Pro Res Qua Sec Res Tes Acc Com Ac0 Traps Triggered 11 | . . . . . . . . . . . . 2 2 . . . . . . . . . . . . . . . 1 . . 1 5 . Indirectly . | . . . . . . . . . . . . . . . . . . . . . . . . . . . . . . . . . . . Trap Hack Attempts . | . . . . . . . . . . . . . . . . . . . . . . . . . . . . . . . . . . . Triggered . | . . . . . . . . . . . . . . . . . . . . . . . . . . . . . . . . . . . Disarmed 12 | . . . . . . . . . . . . . . . . 6 6 . . . . . . . . . . . . . . . . . Reprogrammed 2 | . . . . . . . . . . . . . . . . . . . . . . 1 . . . . . 1 . . . . . . Reused 2 | . . . . . . . . . . . . . . . . . . . . . . 1 . . . . . 1 . . . . . . Traps Extracted . | . . . . . . . . . . . . . . . . . . . . . . . . . . . . . . . . . . . Installed . | . . . . . . . . . . . . . . . . . . . . . . . . . . . . . . . . . . . Triggered 8 | . . . . . . . . . . . . . . . . . . . . 5 . 1 1 . . . . 1 . . . . . . Machines | -11 -10 -10 -10 -9 -8 -8 -7 -7 -7 -7 -6 -6 -6 -6 -6 -6 -5 -5 -5 -5 -4 -4 -4 -4 -4 -3 -3 -3 -3 -2 -2 -1 -1 -1 ---------- Run | Scr Mat Min Exi Min Mat Sto Fac Low Low Dat Pro Fac Ext Cet Arc Hub Fac Upp Upp War Pro Fac Upp Upp Zhi Pro Res Qua Sec Res Tes Acc Com Ac0 Machines Disabled 45 | . 1 . . . . 2 . . . 1 . . . . . 13 . . . . . . 1 . . . . 2 6 . 9 2 4 4 Max in Single Turn 13 | . 1 . . . . 1 . . . 1 . . . . . 13 . . . . . . 1 . . . . 1 1 . 1 . 2 1 Garrison Access 5 | . . . . . . 1 . . . . . 1 . . . 1 1 . . . . . . . . . . 1 . . . . . . Phase Generator 1 | . . . . . . . . . . . . . . . . . . . . . . . . . . . . . . . . . 1 . Network Hub 1 | . . . . . . . . . . . . . . . . 1 . . . . . . . . . . . . . . . . . . Machines Sabotaged . | . . . . . . . . . . . . . . . . . . . . . . . . . . . . . . . . . . . Garrisons Compromised . | . . . . . . . . . . . . . . . . . . . . . . . . . . . . . . . . . . . Overloaded Fab Kills . | . . . . . . . . . . . . . . . . . . . . . . . . . . . . . . . . . . . Fab Network Shutdowns 1 | . . . . . . . . . . . . . . . . . 1 . . . . . . . . . . . . . . . . . Hacking | -11 -10 -10 -10 -9 -8 -8 -7 -7 -7 -7 -6 -6 -6 -6 -6 -6 -5 -5 -5 -5 -4 -4 -4 -4 -4 -3 -3 -3 -3 -2 -2 -1 -1 -1 --------- Run | Scr Mat Min Exi Min Mat Sto Fac Low Low Dat Pro Fac Ext Cet Arc Hub Fac Upp Upp War Pro Fac Upp Upp Zhi Pro Res Qua Sec Res Tes Acc Com Ac0 Machines Accessed 113 | . 4 . 1 . 5 6 9 . . 3 . 5 9 1 . 3 9 . . 1 . 7 . . 4 . 6 11 7 3 6 7 6 . Terminals 76 | . 2 . . . 4 5 5 . . . . 2 9 1 . 3 4 . . . . 5 . . . . 4 8 5 2 5 6 6 . Fabricators 9 | . . . . . . . 1 . . . . 1 . . . . 2 . . . . 1 . . . . 2 . . . 1 1 . . Repair Stations 6 | . 1 . . . . . 2 . . . . . . . . . . . . . . 1 . . . . . 1 . 1 . . . . Recycling Units 4 | . 1 . . . 1 . . . . . . . . . . . 2 . . . . . . . . . . . . . . . . . Scanalyzers 5 | . . . . . . . 1 . . . . 1 . . . . . . . . . . . . . . . 1 2 . . . . . Garrison Access 4 | . . . . . . 1 . . . . . 1 . . . . 1 . . . . . . . . . . 1 . . . . . . Total Hacks 450 | . 13 . 1 . 11 13 21 . . 24 . 11 18 1 . 12 32 . . 1 . 43 . . 17 . 14 64 20 9 46 59 20 . Successful 340 | . 12 . 1 . 6 9 14 . . 24 . 9 11 1 . 7 21 . . 1 . 31 . . 17 . 11 44 14 6 36 51 14 . Failed 110 | . 1 . . . 5 4 7 . . . . 2 7 . . 5 11 . . . . 12 . . . . 3 20 6 3 10 8 6 . Catastrophic 11 | . . . . . . . 2 . . . . 1 . . . . 1 . . . . 2 . . . . . 2 1 1 . . 1 . Database Lockouts . | . . . . . . . . . . . . . . . . . . . . . . . . . . . . . . . . . . . Manual 229 | . 9 . . . 5 1 9 . . . . 5 7 1 . 3 13 . . 1 . 20 . . . . 8 45 11 6 26 50 9 . Terminals 324 | . 6 . . . 10 12 12 . . . . 5 18 1 . 12 21 . . . . 31 . . . . 8 54 17 6 38 53 20 . Fabricators 41 | . . . . . . . 3 . . . . 2 . . . . 5 . . . . 11 . . . . 6 . . . 8 6 . . Repair Stations 18 | . 2 . . . . . 5 . . . . . . . . . . . . . . 1 . . . . . 7 . 3 . . . . Recycling Units 11 | . 5 . . . 1 . . . . . . . . . . . 5 . . . . . . . . . . . . . . . . . Scanalyzers 9 | . . . . . . . 1 . . . . 3 . . . . . . . . . . . . . . . 2 3 . . . . . Garrison Access 4 | . . . . . . 1 . . . . . 1 . . . . 1 . . . . . . . . . . 1 . . . . . . Terminal Hacks 234 | . 5 . 1 . 4 8 6 . . 24 . 2 9 1 . 7 10 . . 1 . 16 . . 17 . 3 31 9 2 24 45 9 . Record 15 | . . . 1 . . . . . . 6 . . . . . . . . . . . . . . 5 . . 3 . . . . . . Part Schematic 42 | . 2 . . . . 3 1 . . 7 . . . . . . 2 . . . . 5 . . 4 . 1 6 3 1 6 1 . . Robot Schematic 10 | . . . . . . . . . . 8 . . . . . . . . . . . . . . . . . 2 . . . . . . Robot Analysis 25 | . 1 . . . . . . . . . . . . . . . . . . . . 1 . . 4 . . 9 . . 1 9 . . Prototype ID Bank 36 | . . . . . . 1 . . . 3 . . . . . . . . . . . 1 . . 4 . . . . . 1 26 . . Open Door 17 | . . . . . . 2 . . . . . . 6 1 . . . . . 1 . . . . . . 1 1 1 . . 3 1 . Level Access Points 3 | . . . . . . . . . . . . . . . . 1 . . . . . . . . . . . 1 . . 1 . . . Branch Access Points 7 | . 1 . . . 1 . 1 . . . . . . . . . 1 . . . . 1 . . . . 1 . . 1 . . . . Emergency Access Points 1 | . . . . . . . . . . . . . . . . . . . . . . . . . . . . . . . . . 1 . Machine Index 4 | . . . . . . . 1 . . . . . . . . . 1 . . . . 1 . . . . . . . . 1 . . . Terminal Index 7 | . . . . . 1 . . . . . . 1 . . . 1 . . . . . . . . . . . 1 1 . . 1 1 . Fabricator Index 2 | . . . . . . . . . . . . . . . . . . . . . . . . . . . . . . . . 1 1 . Scanalyzer Index 2 | . . . . . . . . . . . . 1 . . . . . . . . . . . . . . . . 1 . . . . . Garrison Index 2 | . . . . . . . . . . . . . . . . 1 . . . . . . . . . . . . 1 . . . . . Alert Level 10 | . 1 . . . . . 1 . . . . . . . . . 1 . . . . 2 . . . . . 1 . . 1 1 2 . Unreport Threat 20 | . . . . . 1 . 1 . . . . . . . . 2 3 . . . . 1 . . . . . 2 1 . 5 3 1 . Locate Traps 3 | . . . . . . . . . . . . . 1 . . . . . . . . 1 . . . . . 1 . . . . . . Disarm Traps 3 | . . . . . . . . . . . . . . . . 2 1 . . . . . . . . . . . . . . . . . Reprogram Traps 2 | . . . . . . . . . . . . . . . . . . . . . . 1 . . . . . 1 . . . . . . Maintenance Status 1 | . . . . . . . . . . . . . . . . . . . . . . . . . . . . 1 . . . . . . Security Status 1 | . . . . . . . . . . . . . . . . . . . . . . . . . . . . 1 . . . . . . Recall Extermination 2 | . . . . . . . . . . . . . . . . . . . . . . . . . . . . . . . 2 . . . Recall Reinforcements 5 | . . . . . 1 . . . . . . . 1 . . . 1 . . . . . . . . . . . . . 2 . . . Recall Assault 1 | . . . . . . . . . . . . . . . . . . . . . . . . . . . . . . . 1 . . . Hauler Manifests 2 | . . . . . . . 1 . . . . . . . . . . . . . . . . . . . . . 1 . . . . . Registered Components 2 | . . . . . . 1 . . . . . . . . . . . . . . . . . . . . . . . . 1 . . . Registered Prototypes 3 | . . . . . . 1 . . . . . . . . . . . . . . . 1 . . . . . . . . 1 . . . Zone Layout 3 | . . . . . . . . . . . . . 1 . . . . . . . . 1 . . . . . 1 . . . . . . Protovariant Controls 1 | . . . . . . . . . . . . . . . . . . . . . . . . . . . . . . . 1 . . . Disengage Seal 2 | . . . . . . . . . . . . . . . . . . . . . . . . . . . . . . . . . 2 . Fabricator Hacks 24 | . . . . . . . 1 . . . . 2 . . . . 2 . . . . 7 . . . . 4 . . . 6 2 . . Network Status 1 | . . . . . . . . . . . . . . . . . . . . . . 1 . . . . . . . . . . . . Load Schematic 10 | . . . . . . . . . . . . 1 . . . . 1 . . . . 3 . . . . 2 . . . 2 1 . . Build 13 | . . . . . . . 1 . . . . 1 . . . . 1 . . . . 3 . . . . 2 . . . 4 1 . . Repair Station Hacks 16 | . 2 . . . . . 4 . . . . . . . . . . . . . . 1 . . . . . 6 . 3 . . . . Scan Component 7 | . 1 . . . . . 2 . . . . . . . . . . . . . . . . . . . . 3 . 1 . . . . Repair 7 | . 1 . . . . . 2 . . . . . . . . . . . . . . . . . . . . 3 . 1 . . . . Refit 2 | . . . . . . . . . . . . . . . . . . . . . . 1 . . . . . . . 1 . . . . Recycling Unit Hacks 2 | . 1 . . . . . . . . . . . . . . . 1 . . . . . . . . . . . . . . . . . Retrieve Components 2 | . 1 . . . . . . . . . . . . . . . 1 . . . . . . . . . . . . . . . . . Scanalyzer 5 | . . . . . . . . . . . . 2 . . . . . . . . . . . . . . . 1 2 . . . . . Insert Component 4 | . . . . . . . . . . . . 1 . . . . . . . . . . . . . . . 1 2 . . . . . Analyze 1 | . . . . . . . . . . . . 1 . . . . . . . . . . . . . . . . . . . . . . Garrison Access Hacks 4 | . . . . . . 1 . . . . . 1 . . . . 1 . . . . . . . . . . 1 . . . . . . Seal Access 4 | . . . . . . 1 . . . . . 1 . . . . 1 . . . . . . . . . . 1 . . . . . . Unauthorized Hacks 55 | . 4 . . . 2 . 3 . . . . 2 2 . . . 7 . . . . 7 . . . . 4 5 3 1 6 4 5 . Terminals 33 | . . . . . 1 . 2 . . . . 2 2 . . . 2 . . . . 3 . . . . 2 4 2 1 4 3 5 . Track 4 | . . . . . . . . . . . . . . . . . . . . . . 1 . . . . . 1 . . 1 . 1 . Assimilate 11 | . . . . . 1 . 1 . . . . 1 2 . . . . . . . . . . . . . 1 . 2 1 2 . . . Botnet 14 | . . . . . . . 1 . . . . 1 . . . . 2 . . . . 1 . . . . 1 2 . . 1 3 2 . Operators 4 | . . . . . . . . . . . . . . . . . . . . . . 1 . . . . . 1 . . . . 2 . Fabricators 12 | . . . . . . . . . . . . . . . . . 3 . . . . 4 . . . . 2 . . . 2 1 . . Report 2 | . . . . . . . . . . . . . . . . . 1 . . . . 1 . . . . . . . . . . . . Prioritize 5 | . . . . . . . . . . . . . . . . . 1 . . . . 1 . . . . 2 . . . 1 . . . Siphon 4 | . . . . . . . . . . . . . . . . . 1 . . . . 1 . . . . . . . . 1 1 . . Haulers 1 | . . . . . . . . . . . . . . . . . . . . . . 1 . . . . . . . . . . . . Repair Stations . | . . . . . . . . . . . . . . . . . . . . . . . . . . . . . . . . . . . Recycling Units 7 | . 4 . . . 1 . . . . . . . . . . . 2 . . . . . . . . . . . . . . . . . Monitor 1 | . 1 . . . . . . . . . . . . . . . . . . . . . . . . . . . . . . . . . Reject 1 | . 1 . . . . . . . . . . . . . . . . . . . . . . . . . . . . . . . . . Recyclers 1 | . 1 . . . . . . . . . . . . . . . . . . . . . . . . . . . . . . . . . Mask 2 | . 1 . . . . . . . . . . . . . . . 1 . . . . . . . . . . . . . . . . . Tunnel 2 | . . . . . 1 . . . . . . . . . . . 1 . . . . . . . . . . . . . . . . . Scanalyzers 3 | . . . . . . . 1 . . . . . . . . . . . . . . . . . . . . 1 1 . . . . . Researchers 3 | . . . . . . . 1 . . . . . . . . . . . . . . . . . . . . 1 1 . . . . . Garrison Access . | . . . . . . . . . . . . . . . . . . . . . . . . . . . . . . . . . . . Data Cores Recovered 3 | . . . . . 1 . 1 . . . . . . . . . . . . . . . . . . . . . . . . . 1 . Used 3 | . . . . . 1 . 1 . . . . . . . . . . . . . . . . . . . . . . . . . 1 . Hacking Detections 75 | . 4 . . . 4 3 8 . . . . 3 5 . . 2 5 . . . . 5 . . . . 5 8 4 3 6 7 3 . Full Trace Events 5 | . . . . . . . 1 . . . . . 1 . . . 1 . . . . 1 . . . . . . . 1 . . . . Feedback Events 2 | . . . . . . . . . . . . . 1 . . . . . . . . 1 . . . . . . . . . . . . Hackware Fried 2 | . . . . . . . . . . . . . 1 . . . . . . . . 1 . . . . . . . . . . . . Feedback Blocked . | . . . . . . . . . . . . . . . . . . . . . . . . . . . . . . . . . . . Robot Schematics Acquired 10 | . . . . . . . . . . 8 . . . . . . . . . . . . . . . . . 2 . . . . . . Robots Built . | . . . . . . . . . . . . . . . . . . . . . . . . . . . . . . . . . . . Matter . | . . . . . . . . . . . . . . . . . . . . . . . . . . . . . . . . . . . Time . | . . . . . . . . . . . . . . . . . . . . . . . . . . . . . . . . . . . Total Robot Build Rating . | . . . . . . . . . . . . . . . . . . . . . . . . . . . . . . . . . . . Part Schematics Acquired 40 | . 2 . . . . 3 1 . . 7 . 1 . . . . 2 . . . . 5 . . 4 . 1 6 2 1 5 . . . Parts Built 15 | . . . . . . . 2 . . . . 1 . . . . 1 . . . . 3 . . . . 3 . . . 4 1 . . Matter 3353 | . . . . . . . 212 . . . . 190 . . . . 192 . . . . 839 . . . . 596 . . . 1012 312 . . Time 978 | . . . . . . . 53 . . . . 95 . . . . 64 . . . . 399 . . . . 137 . . . 156 74 . . Total Part Build Rating 105 | . . . . . . . 12 . . . . 5 . . . . 8 . . . . 23 . . . . 20 . . . 28 9 . . Parts Repaired 7 | . 1 . . . . . 2 . . . . . . . . . . . . . . . . . . . . 3 . 1 . . . . Time 292 | . 26 . . . . . 92 . . . . . . . . . . . . . . . . . . . . 138 . 36 . . . . Parts Recycled . | . . . . . . . . . . . . . . . . . . . . . . . . . . . . . . . . . . . Recycled Matter . | . . . . . . . . . . . . . . . . . . . . . . . . . . . . . . . . . . . Retrieved Matter . | . . . . . . . . . . . . . . . . . . . . . . . . . . . . . . . . . . . Retrieved Components 1 | . 1 . . . . . . . . . . . . . . . . . . . . . . . . . . . . . . . . . Parts Scanalyzed 1 | . . . . . . . . . . . . 1 . . . . . . . . . . . . . . . . . . . . . . Part Schematics Acquired 1 | . . . . . . . . . . . . 1 . . . . . . . . . . . . . . . . . . . . . . Parts Damaged . | . . . . . . . . . . . . . . . . . . . . . . . . . . . . . . . . . . . Bothacking | -11 -10 -10 -10 -9 -8 -8 -7 -7 -7 -7 -6 -6 -6 -6 -6 -6 -5 -5 -5 -5 -4 -4 -4 -4 -4 -3 -3 -3 -3 -2 -2 -1 -1 -1 ------------ Run | Scr Mat Min Exi Min Mat Sto Fac Low Low Dat Pro Fac Ext Cet Arc Hub Fac Upp Upp War Pro Fac Upp Upp Zhi Pro Res Qua Sec Res Tes Acc Com Ac0 Used RIF Installer . | . . . . . . . . . . . . . . . . . . . . . . . . . . . . . . . . . . . Robots Hacked 4 | . . . . . . . . . . . . . . . . . . . . . . . . . . . . . . 3 . . 1 . Non-combat 1 | . . . . . . . . . . . . . . . . . . . . . . . . . . . . . . 1 . . . . Combat 2 | . . . . . . . . . . . . . . . . . . . . . . . . . . . . . . 2 . . . . Robot Hacks Applied 3 | . . . . . . . . . . . . . . . . . . . . . . . . . . . . . . 3 . . . . parse_system 3 | . . . . . . . . . . . . . . . . . . . . . . . . . . . . . . 3 . . . . Manual 1 | . . . . . . . . . . . . . . . . . . . . . . . . . . . . . . . . . 1 . Relay Couplers Released 2 | . . . . . . . . . . . . . . . . 2 . . . . . . . . . . . . . . . . . . Machine Destruction 2 | . . . . . . . . . . . . . . . . 2 . . . . . . . . . . . . . . . . . . Robots Rewired 5 | . . . . . . . . . . . . . . . . . . . . 4 . . . . . . . . . . 1 . . . Allies Hacked 1 | . . . . . . . . . . . . . . . . . . . . . . . . . . . . 1 . . . . . . Hacks Repelled . | . . . . . . . . . . . . . . . . . . . . . . . . . . . . . . . . . . . Allies | -11 -10 -10 -10 -9 -8 -8 -7 -7 -7 -7 -6 -6 -6 -6 -6 -6 -5 -5 -5 -5 -4 -4 -4 -4 -4 -3 -3 -3 -3 -2 -2 -1 -1 -1 -------- Run | Scr Mat Min Exi Min Mat Sto Fac Low Low Dat Pro Fac Ext Cet Arc Hub Fac Upp Upp War Pro Fac Upp Upp Zhi Pro Res Qua Sec Res Tes Acc Com Ac0 Total Allies 38 | . . . . . 1 10 1 . . . . 1 11 5 . . . . . 4 . . . . . . 1 . 1 1 2 . . . Largest Group 10 | . . . . . 1 10 1 . . . . 1 7 8 8 5 . . . 4 . . . . . . 1 1 1 1 1 1 . . Highest-Rated Group 670 | . . . . . 10 173 26 . . . . 10 325 670 670 475 . . . 177 . . . . . . 45 45 10 26 160 160 . . Highest-Rated Ally 160 | . . . . . 10 29 26 . . . . 10 156 150 138 95 . . . 49 . . . . . . 45 45 10 26 160 160 . . Total Orders 3 | . . . . . . 1 . . . . . . . . . . . . . . . . . . . . . . . . . 2 . . STAY 2 | . . . . . . 1 . . . . . . . . . . . . . . . . . . . . . . . . . 1 . . FOLLOW 1 | . . . . . . . . . . . . . . . . . . . . . . . . . . . . . . . . 1 . . Ally Attacks 202 | . . . . . . 91 . . . . . . 38 27 25 8 . . . . . . . . . . . . . . . 13 . . Total Damage 4764 | . . . . . . 1081 . . . . . . 1365 509 986 186 . . . . . . . . . . . . . . . 637 . . Kills 31 | . . . . . . 12 . . . . . . 11 3 4 . . . . . . . . . . . . . . . . 1 . . Allies Corrupted 1 | . . . . . . . . . . . . . . . . . . . . . . . . . . . . . . . . 1 . . Allies Melted 2 | . . . . . . . . . . . . . . . . . . . . . . . . . . . . . . 2 . . . . Intel | -11 -10 -10 -10 -9 -8 -8 -7 -7 -7 -7 -6 -6 -6 -6 -6 -6 -5 -5 -5 -5 -4 -4 -4 -4 -4 -3 -3 -3 -3 -2 -2 -1 -1 -1 ------- Run | Scr Mat Min Exi Min Mat Sto Fac Low Low Dat Pro Fac Ext Cet Arc Hub Fac Upp Upp War Pro Fac Upp Upp Zhi Pro Res Qua Sec Res Tes Acc Com Ac0 Robot Analysis Total 25 | . 1 . . . . . . . . . . . . . . . . . . . . 1 . . 4 . . 9 . . 1 9 . . Derelict Logs Recovered 10 | . . 2 . 2 . . . 1 1 . 1 . . . . . . 1 1 . 1 . . . . . . . . . . . . . Drone Launches . | . . . . . . . . . . . . . . . . . . . . . . . . . . . . . . . . . . . Drone Recoveries . | . . . . . . . . . . . . . . . . . . . . . . . . . . . . . . . . . . . Exploration | -11 -10 -10 -10 -9 -8 -8 -7 -7 -7 -7 -6 -6 -6 -6 -6 -6 -5 -5 -5 -5 -4 -4 -4 -4 -4 -3 -3 -3 -3 -2 -2 -1 -1 -1 ------------- Run | Scr Mat Min Exi Min Mat Sto Fac Low Low Dat Pro Fac Ext Cet Arc Hub Fac Upp Upp War Pro Fac Upp Upp Zhi Pro Res Qua Sec Res Tes Acc Com Ac0 Turns Passed 23360 | 10 790 599 269 304 711 536 508 104 76 49 494 914 675 240 339 35 187 132 111 163 78 533 172 233 153 115 221 481 523 742 774 1054 10349 686 Spaces Moved 19463 | 4 419 353 169 186 323 286 998 264 217 96 304 1109 620 102 126 107 434 403 253 578 261 647 328 510 263 193 334 719 1155 1581 931 541 4391 258 Core 46 | . . . . . . . . . . . . . . . 30 . . . . . . . . . 8 . . . . . . . . 8 Treads 7206 | 2 419 353 169 186 323 286 10 . . . . . . . . . . . . . . . . . . . . . . . 282 539 4387 250 Legs 2 | 2 . . . . . . . . . . . . . . . . . . . . . . . . . . . . . . . . . . Wheels . | . . . . . . . . . . . . . . . . . . . . . . . . . . . . . . . . . . . Hover . | . . . . . . . . . . . . . . . . . . . . . . . . . . . . . . . . . . . Flight 12150 | . . . . . . . 988 264 217 96 304 1109 620 102 96 107 434 403 253 578 261 647 328 510 255 193 334 719 1124 1577 631 . . . Fastest Speed 11 | 160 160 160 160 160 158 158 27 27 27 27 27 24 11 22 22 12 13 23 23 23 25 20 27 25 21 21 21 15 13 13 22 135 135 50 Average Speed 68 | 180 160 160 160 160 158 158 28 27 27 27 30 25 25 22 147 19 22 23 23 24 25 25 27 25 41 21 21 20 22 21 56 135 135 132 Slowest Speed 650 | 200 160 160 160 160 162 158 158 27 27 27 31 27 27 27 550 22 23 23 23 92 25 30 27 27 650 21 21 22 23 22 137 135 135 135 Overloaded Moves 204 | . . . . . . . . . . . . . 12 . . 27 7 . . . . 3 . . . . . 75 16 64 . . . . Propulsion Burnouts . | . . . . . . . . . . . . . . . . . . . . . . . . . . . . . . . . . . . Robots Hopped 74 | . . . . . . . 7 . . . . 6 4 . 1 2 4 . . 1 1 9 2 . . . 2 20 4 2 9 . . . Cave-ins Triggered 1 | . . . . . . . . . . . . . 1 . . . . . . . . . . . . . . . . . . . . . Teleports 3 | . . . . . . . . . . . . . . . . . . . . . . . . . . . . 1 . . . . 1 1 Spacefolds 23 | . . . . . . . . . . . . . . . . . . . . . . . . . . . . . 11 1 9 1 1 . Exploration Rate (%) 48 | 2 56 59 54 52 32 52 17 52 41 76 56 34 70 68 79 20 21 65 51 71 51 20 60 67 61 51 11 73 60 27 60 12 91 28 Regions Visited 34 Branch Regions 25 Pre-discovered Areas 9 | . . 2 1 . 1 . . . . 1 . . . . . . 1 . . . . . . . 3 . . . . . . . . . Known Exits Taken 34 | 1 1 1 1 1 1 1 1 1 1 1 1 1 1 1 1 1 1 1 1 1 1 1 1 1 1 1 1 1 1 1 1 1 1 . Unknown Exits Taken . | . . . . . . . . . . . . . . . . . . . . . . . . . . . . . . . . . . . Scrap Searched 18 | . . . . . . . . 5 1 . 3 . . . . . . 2 3 . . . . 3 . 1 . . . . . . . . Spaces Dug 136 | . . . . . . . 4 4 6 . . 27 5 . . 2 4 . . . . 5 5 6 . 6 6 3 15 8 6 5 8 11 Terrain Destroyed 1240 | . 3 28 . 9 . . 4 4 6 . . 27 5 30 . 140 4 . . . . 5 5 8 . 6 10 3 23 13 10 13 247 637 Melee 83 | . . . . . . . 4 4 6 . . 27 5 . . 2 4 . . . . 5 5 1 . 2 4 3 4 1 4 2 . . Projectile 169 | . . . . . . . . . . . . . . . . . . . . . . . . 7 . 4 6 . 19 12 6 4 92 19 AOE 979 | . 3 28 . 9 . . . . . . . . . 30 . 138 . . . . . . . . . . . . . . . . 153 618 Terrain Rammed . | . . . . . . . . . . . . . . . . . . . . . . . . . . . . . . . . . . . Walls Destroyed . | . . . . . . . . . . . . . . . . . . . . . . . . . . . . . . . . . . . Machines Disabled . | . . . . . . . . . . . . . . . . . . . . . . . . . . . . . . . . . . . Actions | -11 -10 -10 -10 -9 -8 -8 -7 -7 -7 -7 -6 -6 -6 -6 -6 -6 -5 -5 -5 -5 -4 -4 -4 -4 -4 -3 -3 -3 -3 -2 -2 -1 -1 -1 --------- Run | Scr Mat Min Exi Min Mat Sto Fac Low Low Dat Pro Fac Ext Cet Arc Hub Fac Upp Upp War Pro Fac Upp Upp Zhi Pro Res Qua Sec Res Tes Acc Com Ac0 Total 28374 | 8 501 370 168 189 425 338 1197 281 224 109 699 1679 1104 311 248 110 504 425 274 600 269 941 396 601 300 255 470 977 1356 1949 1124 834 8679 459 Wait 7498 | . 35 . . . 25 . 163 4 1 7 388 520 428 200 97 . 48 13 . . 8 238 59 75 11 54 121 201 127 326 113 228 3955 53 Move 19248 | 3 418 352 168 185 322 285 983 263 216 95 303 1096 611 101 123 102 426 402 252 575 258 629 323 509 262 192 329 680 1126 1573 903 539 4387 257 Hop 70 | . . . . . . . 7 . . . . 6 4 . 1 2 3 . . 1 1 8 2 . . . 2 18 4 2 9 . . . Pick Up 121 | 1 14 1 . . 6 2 5 1 . . . 5 1 . 2 1 3 . . . . 4 . 1 3 . 1 6 4 5 15 8 21 11 Fast Attach 121 | . . 2 . . . 7 2 . . . 1 3 4 . 1 . 3 . 1 8 . 3 2 3 8 . 1 9 21 3 9 2 22 6 Attach 73 | 2 1 . . . 4 . 9 . . . . 1 3 2 . . 1 . . . . 7 1 . . . 2 8 3 2 6 1 18 2 Detach 33 | . . . . . . . 2 . . . . . 1 . . . 1 . . 2 . 3 . . . . . 4 3 1 4 . 12 . Swap 99 | . 8 1 . 1 5 6 4 1 1 2 5 6 . 5 3 . 2 . . 1 1 2 1 1 3 . 2 1 7 3 7 2 17 1 Drop 207 | 2 6 3 . . 7 12 8 2 . . . 8 . . 2 . 7 . 1 8 . 5 1 3 10 . 2 8 20 8 24 3 46 11 Fire 559 | . 19 10 . 2 56 17 . . . . . . . 2 1 . . . . . . . . 7 . 4 6 21 25 12 18 46 199 114 Melee 287 | . . . . . . 9 14 10 6 5 2 34 16 1 18 5 10 10 20 . 1 42 7 2 3 5 4 21 8 14 15 5 . . Ram . | . . . . . . . . . . . . . . . . . . . . . . . . . . . . . . . . . . . Kick . | . . . . . . . . . . . . . . . . . . . . . . . . . . . . . . . . . . . Crush 8 | . . 1 . 1 . . . . . . . . . . . . . . . . . . . . . . . . . . . . 2 4 Escape Stasis 44 | . . . . . . . . . . . . . 36 . . . . . . . . . . . . . . . 8 . . . . . Rewire 6 | . . . . . . . . . . . . . . . . . . . . 5 . . . . . . . . . . 1 . . . Trap . | . . . . . . . . . . . . . . . . . . . . . . . . . . . . . . . . . . . Miscellaneous . | . . . . . . . . . . . . . . . . . . . . . . . . . . . . . . . . . . . Route ------- -11/Scrapyard -10/Materials (discovered 3 exits: *Mat x2 / *Min) -10/Mines -10/Exiles -9/Mines -8/Materials (discovered 2 exits: *Sto x2) -8/Storage -7/Factory (discovered 3 exits: *Fac / *Low x2) -7/Lower Caves -7/Lower Caves -7/Data Miner -6/Proximity Caves -6/Factory (discovered 4 exits: *Fac / *Low x2 / *Ext) -6/Extension (discovered 2 exits: *Fac / *Cet) -6/Cetus -6/Archives (discovered 2 exits: *Fac / *Hub) -6/Hub_04(d) (discovered 4 exits: *Fac x4) -5/Factory (discovered 3 exits: *Fac / *Upp x2) -5/Upper Caves -5/Upper Caves -5/Warlord -4/Proximity Caves -4/Factory (discovered 3 exits: *Res / *Upp x2) -4/Upper Caves -4/Upper Caves (discovered 2 exits: *Res / *Zhi) -4/Zhirov -3/Proximity Caves -3/Research (discovered 4 exits: *Res / Arm / *Qua x2) -3/Quarantine (discovered 2 exits: *Res / *Sec) -3/Section 7 -2/Research (discovered 2 exits: *Tes x2) -2/Testing -1/Access -1/Command (discovered 3 exits: *Sur x2 / *Ac0) -1/Access_0 Near Former Tau Ceti IV History --------- Turn | Location | Event 1 | -11/Scrapyard | Identified exit to Materials 1 | -11/Scrapyard | Discovered exit to Materials (range 1) 11 | -11/Scrapyard | Entered Materials 11 | -10/Materials | Evolved 1 slot: Utility x1 312 | -10/Materials | Build established: Hacker-Mutant 462 | -10/Materials | Identified exit to Materials 462 | -10/Materials | Discovered exit to Materials (range 5) 524 | -10/Materials | Identified exit to Mines 559 | -10/Materials | Discovered exit to Materials (range 14) 647 | -10/Materials | Repaired Lgt. Treads 801 | -10/Materials | Entered Mines 832 | -10/Mines | Found a damaged Exp. Sensor Array with a note attached 836 | -10/Mines | Found Prototype Device 836 | -10/Mines | Identified Exp. Sensor Array 1130 | -10/Mines | Deemed a non-threat by the Exiles lab entrance 1130 | -10/Mines | Identified exit to Exiles 1130 | -10/Mines | Discovered exit to Exiles (range 5) 1212 | -10/Mines | Learned location of Recycling (-8) 1231 | -10/Mines | A weapon hastily lodged in a ceiling crevice suddenly fell to the ground 1330 | -10/Mines | Assembled infested the area 1400 | -10/Mines | Entered Exiles 1440 | -10/Exiles | Met 8R-AWN 1466 | -10/Exiles | Met EX-HEX 1546 | -10/Exiles | Met EX-DEC 1573 | -10/Exiles | Learned location of Zion (-6) 1652 | -10/Exiles | Identified exit to Mines 1652 | -10/Exiles | Discovered exit to Mines (range 14) 1669 | -10/Exiles | Entered Mines 1746 | -9/Mines | Learned Materials interactive machine intel 1957 | -9/Mines | Identified exit to Materials 1957 | -9/Mines | Discovered exit to Materials (range 7) 1973 | -9/Mines | Entered Materials 1973 | -8/Materials | Evolved 4 slots: Propulsion x2, Utility x2 1974 | -8/Materials | Identified exit to Storage 1975 | -8/Materials | Loaded intel: 17 interactive machine locations 2684 | -8/Materials | Entered Storage 2804 | -8/Storage | Assisted by bots powering up and referring to "LRC-V3" 3087 | -8/Storage | Garrison activated, responded to threat 3107 | -8/Storage | Build established: Commander-Mutant 3196 | -8/Storage | Identified exit to Factory 3196 | -8/Storage | Discovered exit to Factory (range 16) 3220 | -8/Storage | Entered Factory 3220 | -7/Factory | Evolved 2 slots: Propulsion x1, Utility x1 3296 | -7/Factory | Identified exit to Factory 3296 | -7/Factory | Discovered exit to Factory (range 5) 3365 | -7/Factory | Fabricated Field Propulsion Drive (x2) 3454 | -7/Factory | Identified exit to Lower Caves 3528 | -7/Factory | Build established: Hacker-Sprinter 3553 | -7/Factory | Repaired Exp. Sensor Array? 3604 | -7/Factory | Repaired Lgt. Nuclear Core 3728 | -7/Factory | Entered Lower Caves 3779 | -7/Lower Caves | Learned Factory garrison access intel 3828 | -7/Lower Caves | Identified exit to Lower Caves 3828 | -7/Lower Caves | Discovered exit to Lower Caves (range 9) 3832 | -7/Lower Caves | Entered another Lower Caves area 3892 | -7/Lower Caves | Encountered a Warlord checkpoint 3905 | -7/Lower Caves | Identified exit to Data Miner 3905 | -7/Lower Caves | Discovered exit to Data Miner (range 11) 3907 | -7/Lower Caves | Learned location of 1 exit from Factory 3908 | -7/Lower Caves | Entered Data Miner 3908 | -7/Data Miner | Identified exit to Proximity Caves 3908 | -7/Data Miner | Discovered exit to Proximity Caves (range 6) 3914 | -7/Data Miner | Met Data Miner 3919 | -7/Data Miner | Learned location of Section 7 (-3) 3919 | -7/Data Miner | Acquired the access code to Warlord's prototype stash 3925 | -7/Data Miner | Received God Mode back door access code from Data Miner 3934 | -7/Data Miner | Data Conduit disabled 3957 | -7/Data Miner | Entered Proximity Caves 4086 | -6/Proximity Caves | Spotted B-75 Beast 4333 | -6/Proximity Caves | Received a Behemoth hack from an annoying Tinkerer 4413 | -6/Proximity Caves | Discovered exit to Factory (range 10) 4443 | -6/Proximity Caves | Learned 4 Factory zone layouts 4451 | -6/Proximity Caves | Entered Factory 4451 | -6/Factory | Evolved 2 slots: Propulsion x1, Utility x1 4452 | -6/Factory | Identified exit to Extension 4453 | -6/Factory | Identified exit to Lower Caves 4454 | -6/Factory | Loaded intel: 3 garrison access locations 4633 | -6/Factory | Fabricated Triangulator? 4958 | -6/Factory | Discovered exit to Lower Caves (range 16) 5241 | -6/Factory | Identified exit to Factory 5241 | -6/Factory | Discovered exit to Factory (range 7) 5365 | -6/Factory | Entered Extension 5513 | -6/Extension | Rescued a captive Derelict 5514 | -6/Extension | Rescued a captive Derelict 5640 | -6/Extension | Hacking Suite fried by hacking feedback 5645 | -6/Extension | Rescued A7 5660 | -6/Extension | Crushed by falling debris 5691 | -6/Extension | Lost 4 parts (1p3u) 5860 | -6/Extension | Spotted B-75 Beast 5861 | -6/Extension | Spotted B-75 Beast 5881 | -6/Extension | Rescued a captive Derelict 5896 | -6/Extension | Lost 3 parts (2n1u) 5925 | -6/Extension | Rescued a captive Derelict 5926 | -6/Extension | Rescued a captive Derelict 5937 | -6/Extension | Rescued a captive Derelict 5945 | -6/Extension | Rescued a captive Derelict 5962 | -6/Extension | Rescued a captive Derelict 5962 | -6/Extension | Rescued a captive Derelict 5971 | -6/Extension | Discovered exit to Factory (range 10) 5972 | -6/Extension | Identified exit to Cetus 5972 | -6/Extension | Discovered exit to Cetus (range 6) 6040 | -6/Extension | Entered Cetus 6040 | -6/Cetus | Accompanied by 7 allies (A7) 6045 | -6/Cetus | Acquired a Cetus Manufacturing Module code from A7 6053 | -6/Cetus | Spotted Cetus Guard 6055 | -6/Cetus | Spotted Cetus Guard 6056 | -6/Cetus | Spotted Cetus Guard 6063 | -6/Cetus | Spotted Cetus Guard 6069 | -6/Cetus | Allies destroyed Cetus Guard 6079 | -6/Cetus | Destroyed Cetus Guard 6080 | -6/Cetus | Allies destroyed Cetus Guard 6084 | -6/Cetus | Destroyed Cetus Guard 6101 | -6/Cetus | Escorted A7 to Cetus Mainframe 6110 | -6/Cetus | Started Cetus Manufacturing Module 6111 | -6/Cetus | Identified exit to Archives 6111 | -6/Cetus | Discovered exit to Archives (range 22) 6135 | -6/Cetus | Manufactured an Enhanced Grunt 6160 | -6/Cetus | Manufactured an Enhanced Grunt 6185 | -6/Cetus | Manufactured an Enhanced Grunt 6210 | -6/Cetus | Manufactured an Enhanced Grunt 6235 | -6/Cetus | Manufactured an Enhanced Grunt 6280 | -6/Cetus | Entered Archives 6280 | -6/Archives | Accompanied by 8 allies (A7) 6286 | -6/Archives | Received a hacking code to weaken MAIN.C 6509 | -6/Archives | Discovered exit to Factory (range 13) 6562 | -6/Archives | Identified exit to Hub_04(d) 6562 | -6/Archives | Discovered exit to Hub_04(d) (range 14) 6619 | -6/Archives | Entered Hub_04(d) 6619 | -6/Hub_04(d) | Accompanied by 5 allies 6648 | -6/Hub_04(d) | Network Hub disabled 6648 | -6/Hub_04(d) | Spotted Lightning 6648 | -6/Hub_04(d) | Spotted Lightning 6648 | -6/Hub_04(d) | Spotted Lightning 6648 | -6/Hub_04(d) | Spotted Lightning 6648 | -6/Hub_04(d) | Spotted Lightning 6648 | -6/Hub_04(d) | Spotted Lightning 6648 | -6/Hub_04(d) | Spotted Lightning 6648 | -6/Hub_04(d) | Spotted Lightning 6648 | -6/Hub_04(d) | Spotted Lightning 6648 | -6/Hub_04(d) | Spotted Lightning 6648 | -6/Hub_04(d) | Spotted Lightning 6648 | -6/Hub_04(d) | Spotted Lightning 6648 | -6/Hub_04(d) | Spotted B-75 Beast 6654 | -6/Hub_04(d) | Entered Factory 6654 | -5/Factory | Evolved 2 slots: Power x1, Propulsion x1 6709 | -5/Factory | Spotted B-75 Beast 6754 | -5/Factory | Local fabrication network quarantined 6774 | -5/Factory | Fabricated Impulse Thruster Array (x1) 6791 | -5/Factory | Identified exit to Factory 6791 | -5/Factory | Discovered exit to Factory (range 22) 6828 | -5/Factory | Identified exit to Upper Caves 6841 | -5/Factory | Entered Upper Caves 6965 | -5/Upper Caves | Identified exit to Upper Caves 6965 | -5/Upper Caves | Discovered exit to Upper Caves (range 14) 6973 | -5/Upper Caves | Entered another Upper Caves area 7081 | -5/Upper Caves | Learned Factory terminal intel 7082 | -5/Upper Caves | Identified exit to Warlord 7082 | -5/Upper Caves | Discovered exit to Warlord (range 10) 7084 | -5/Upper Caves | Entered Warlord 7156 | -5/Warlord | Met Warlord 7159 | -5/Warlord | Opened Warlord's prototype stash 7167 | -5/Warlord | Found Prototype Processor 7167 | -5/Warlord | Identified Exp. Core Analyzer 7171 | -5/Warlord | Found Prototype Device 7171 | -5/Warlord | Identified System Purifier 7181 | -5/Warlord | Warlord's base attacked by MAIN.C 7209 | -5/Warlord | Spotted B-86 Titan 7209 | -5/Warlord | Spotted B-75 Beast 7230 | -5/Warlord | Opened side exit 7244 | -5/Warlord | Identified exit to Proximity Caves 7244 | -5/Warlord | Discovered exit to Proximity Caves (range 8) 7247 | -5/Warlord | Entered Proximity Caves 7266 | -4/Proximity Caves | Learned Research machine intel 7292 | -4/Proximity Caves | Spotted B-86 Titan 7321 | -4/Proximity Caves | Discovered exit to Factory (range 16) 7325 | -4/Proximity Caves | Entered Factory 7325 | -4/Factory | Evolved 2 slots: Utility x2 7326 | -4/Factory | Identified exit to Upper Caves 7327 | -4/Factory | Loaded intel: 20 terminal locations 7335 | -4/Factory | Spotted B-86 Titan 7347 | -4/Factory | Imp. System Shield fried by hacking feedback 7469 | -4/Factory | Fabricated Exp. Terrain Scanner (x1) 7564 | -4/Factory | Fabricated Exp. Terrain Scan Processor? 7690 | -4/Factory | Fabricated Exp. Terrain Scanner (x1) 7761 | -4/Factory | Found Prototype Processor 7761 | -4/Factory | Identified Exp. Signal Interpreter 7772 | -4/Factory | Identified exit to Research 7772 | -4/Factory | Discovered exit to Research (range 28) 7858 | -4/Factory | Entered Upper Caves 7970 | -4/Upper Caves | Identified exit to Upper Caves 7970 | -4/Upper Caves | Discovered exit to Upper Caves (range 20) 7992 | -4/Upper Caves | Found Alien Artifact 7992 | -4/Upper Caves | Identified Dimensional Node Initializer 7992 | -4/Upper Caves | Initialized slip node 8030 | -4/Upper Caves | Entered another Upper Caves area 8032 | -4/Upper Caves | Discovered exit to Research (range 12) 8139 | -4/Upper Caves | Build established: Hacker-Scout 8233 | -4/Upper Caves | Spotted B-86 Titan 8257 | -4/Upper Caves | Encountered a Warlord checkpoint 8257 | -4/Upper Caves | Identified exit to Zhirov 8257 | -4/Upper Caves | Discovered exit to Zhirov (range 5) 8263 | -4/Upper Caves | Entered Zhirov 8263 | -4/Zhirov | Identified exit to Proximity Caves 8263 | -4/Zhirov | Discovered exit to Proximity Caves (range 3) 8268 | -4/Zhirov | Met Zhirov 8274 | -4/Zhirov | Learned location of Quarantine (-3) 8274 | -4/Zhirov | Learned location of Testing (-2) 8274 | -4/Zhirov | Learned location of Command (-1) 8276 | -4/Zhirov | Zhirov requested help retrieving the SGEMP Prototype 8280 | -4/Zhirov | Found Alien Artifact 8280 | -4/Zhirov | Identified Integrated Dissipator 8280 | -4/Zhirov | Installed Integrated Dissipator, increased core heat dissipation (+20) 8378 | -4/Zhirov | Found Alien Artifact 8416 | -4/Zhirov | Entered Proximity Caves 8469 | -3/Proximity Caves | Spotted B-86 Titan 8511 | -3/Proximity Caves | Discovered exit to Research (range 10) 8531 | -3/Proximity Caves | Entered Research 8531 | -3/Research | Evolved 2 slots: Utility x2 8532 | -3/Research | Loaded intel: 114 machine locations 8535 | -3/Research | Identified exit to Armory 8535 | -3/Research | Discovered exit to Armory (range 12) 8540 | -3/Research | Spotted B-86 Titan 8643 | -3/Research | Identified exit to Research 8643 | -3/Research | Discovered exit to Research (range 17) 8650 | -3/Research | Identified exit to Quarantine 8650 | -3/Research | Discovered exit to Quarantine (range 15) 8683 | -3/Research | Fabricated Mic. Fission Core (x2) 8715 | -3/Research | Fabricated Exp. Sensor Array (x1) 8752 | -3/Research | Entered Quarantine 8752 | -3/Quarantine | Accompanied by 1 ally 8753 | -3/Quarantine | Spotted Alpha 7 8794 | -3/Quarantine | Identified Transdimensional Reconstructor 8794 | -3/Quarantine | Warped through subspace 8825 | -3/Quarantine | Lost 4 parts (3u1w) 8859 | -3/Quarantine | Found Alien Artifact 8865 | -3/Quarantine | Identified Core Reset Matrix 8872 | -3/Quarantine | Found Prototype Launcher 8872 | -3/Quarantine | Identified Com. Tesla Bomb Launcher 8881 | -3/Quarantine | Found Alien Artifact 8906 | -3/Quarantine | Found Alien Artifact 8966 | -3/Quarantine | Repaired Exp. Sensor Array 9008 | -3/Quarantine | Repaired Exp. Propulsion Shielding 9054 | -3/Quarantine | Repaired Fusion Reactor 9120 | -3/Quarantine | Found Alien Artifact 9211 | -3/Quarantine | Identified Matter Drive 9216 | -3/Quarantine | Spotted Fortress 9232 | -3/Quarantine | Identified exit to Section 7 9232 | -3/Quarantine | Discovered exit to Section 7 (range 5) 9233 | -3/Quarantine | Entered Section 7 9252 | -3/Section 7 | Found Alien Artifact 9252 | -3/Section 7 | Identified Integrated Mediator 9252 | -3/Section 7 | Installed Integrated Mediator, increased core attachment efficiency. 9285 | -3/Section 7 | Found Alien Artifact 9285 | -3/Section 7 | Identified Spacefold Activator 9309 | -3/Section 7 | Discovered exit to Research (range 30) 9314 | -3/Section 7 | Spotted S7 Guard 9317 | -3/Section 7 | Found Alien Artifact 9317 | -3/Section 7 | Identified Integrated Singularity Reactor 9317 | -3/Section 7 | Installed Integrated Singularity Reactor, increased core energy generation (+20) 9389 | -3/Section 7 | Build established: Hacker-Ninja 9416 | -3/Section 7 | Spotted S7 Guard 9417 | -3/Section 7 | Found Alien Artifact 9417 | -3/Section 7 | Identified Integrated Heat Negator 9417 | -3/Section 7 | Installed Integrated Heat Negator, increased core heat dissipation (+40) 9505 | -3/Section 7 | Found Integrated Dissipator 9505 | -3/Section 7 | Installed Integrated Dissipator, increased core heat dissipation (+20) 9554 | -3/Section 7 | Identified Hpw. Transdimensional Reconstructor 9554 | -3/Section 7 | Identified Subatomic Replicator 9598 | -3/Section 7 | Spotted B-99 Colossus 9622 | -3/Section 7 | Found Alien Artifact 9622 | -3/Section 7 | Identified LRC Armor 9622 | -3/Section 7 | Installed LRC Armor, increased core integrity (+250) 9636 | -3/Section 7 | Found Alien Artifact 9636 | -3/Section 7 | Identified Core Expander 9636 | -3/Section 7 | Installed Core Expander, added new Power slot 9646 | -3/Section 7 | Found Integrated Dissipator 9646 | -3/Section 7 | Installed Integrated Dissipator, increased core heat dissipation (+20) 9756 | -3/Section 7 | Entered Research 9756 | -2/Research | Warlord forces began assault on 0b10 9756 | -2/Research | Evolved 2 slots: Utility x2 9768 | -2/Research | Identified exit to Testing 9775 | -2/Research | Found Gamma Bomb Array 9796 | -2/Research | Met up with Warlord 9866 | -2/Research | Research machine network offline 9867 | -2/Research | Repaired System Purifier 10026 | -2/Research | Borebot progress halted 10081 | -2/Research | Borebot progress halted 10352 | -2/Research | Borebot progress halted 10498 | -2/Research | Entered Testing 10512 | -2/Testing | Found Prototype Ballistic Gun 10512 | -2/Testing | Identified Hyp. Multirail 10560 | -2/Testing | Protovariant out of control (PY-HU3AWEVOM2) 10560 | -2/Testing | Unleashed a protovariant (PY-HU3AWEVOM2) 10568 | -2/Testing | Found Prototype Energy Cannon 10581 | -2/Testing | Found Prototype Hackware 10582 | -2/Testing | Identified System Mapper 10589 | -2/Testing | Found Prototype Hackware 10589 | -2/Testing | Identified Ghost Barrier 10622 | -2/Testing | Garrison activated, responded to threat 10654 | -2/Testing | Found Prototype Energy Cannon 10655 | -2/Testing | Found Prototype Energy Cannon 10691 | -2/Testing | Found Prototype Device 10691 | -2/Testing | Identified Exp. Hardlight Generator 10701 | -2/Testing | Fabricated Exp. Biometal Heavy Treads? 10750 | -2/Testing | Fabricated Exp. Biometal Heavy Treads (x1) 10788 | -2/Testing | Fabricated Exp. Biometal Heavy Treads? 10801 | -2/Testing | Found Prototype Protection 10806 | -2/Testing | Found Prototype Protection 10806 | -2/Testing | Identified Hvy. Regenerative Plating 10939 | -2/Testing | Fabricated Huge Storage Unit (x1) 10986 | -2/Testing | Identified exit to Access 11083 | -2/Testing | Build established: Wizard-Assassin 11141 | -2/Testing | Spotted PX-421GCWSC4M 11146 | -2/Testing | Rewired PX-421GCWSC4M 11212 | -2/Testing | Found Prototype Energy Cannon 11213 | -2/Testing | Identified Null Cannon 11272 | -2/Testing | Entered Access 11272 | -1/Access | Accompanied by 1 ally 11272 | -1/Access | Evolved 1 slot: Utility x1 11457 | -1/Access | Identified exit to Command 11457 | -1/Access | Discovered exit to Command (range 25) 11795 | -1/Access | Fabricated Exp. Armor Integrity Analyzer? 11900 | -1/Access | Build established: Wizard-Mutant 12326 | -1/Access | Entered Command 12382 | -1/Command | Phase Generator disabled 12522 | -1/Command | Found Antimissile System 12682 | -1/Command | Identified SHELL Armor 12757 | -1/Command | Found Gamma Bomb Array 12793 | -1/Command | Identified exit to Surface 12793 | -1/Command | Discovered exit to Surface (range 29) 13180 | -1/Command | Build established: Wizard-Skirmisher 13568 | -1/Command | Build established: Wizard-Mutant 13921 | -1/Command | Disengaged cave seal 13921 | -1/Command | Derelicts emerged from the dark tunnel 13921 | -1/Command | Welcomed Warlord to Command 13999 | -1/Command | Disengaged cave seal 13999 | -1/Command | Derelicts emerged from the dark tunnel 14073 | -1/Command | Spotted M Guard 14073 | -1/Command | Spotted M Guard 14075 | -1/Command | Spotted Combat Programmer 14075 | -1/Command | Spotted Combat Programmer 14080 | -1/Command | Warlord commented on Warlord statues 14080 | -1/Command | Destroyed Combat Programmer 14102 | -1/Command | Destroyed M Guard 14113 | -1/Command | Destroyed M Guard 14113 | -1/Command | All MAIN.C guards destroyed 14125 | -1/Command | Found Prototype Device 14125 | -1/Command | Identified AEGIS Remote Shield 14132 | -1/Command | Identified Potential Cannon (x2) 14206 | -1/Command | Met MAIN.C 14210 | -1/Command | Warlord shut down involuntarily 14213 | -1/Command | Hacked MAIN.C using A7's code 14215 | -1/Command | 0b10 Conduit disabled 14302 | -1/Command | Spotted B-99 Colossus 14323 | -1/Command | MAIN.C activated Command garrisons 14366 | -1/Command | Discovered exit to Surface (range 7) 14555 | -1/Command | Found Prototype Launcher 14555 | -1/Command | Identified Z-bomb Delivery System 14570 | -1/Command | Found Prototype Protection 14570 | -1/Command | Identified Centrium Heavy Armor Plating 14577 | -1/Command | Found Vortex Chain Reactor 14580 | -1/Command | Found Zero-point Reactor 14588 | -1/Command | Found Prototype Device 14588 | -1/Command | Identified Exp. Phase Shifter 14834 | -1/Command | Build established: Generator-Mutant 18745 | -1/Command | Found Zero-point Reactor 18748 | -1/Command | Found Beam Splitter 20540 | -1/Command | Found Exp. Armor Integrity Analyzer 21042 | -1/Command | Used Subatomic Replicator to replicate AEGIS Remote Shield 21051 | -1/Command | Found Exp. Targeting Computer 22420 | -1/Command | Warped through subspace to slip node 22420 | -1/Command | Identified exit to Access_0 22420 | -1/Command | Discovered exit to Access_0 (range 4) 22675 | -1/Command | Entered Access_0 22678 | -1/Access_0 | Met Architect 22683 | -1/Access_0 | Destroyed A8 22696 | -1/Access_0 | Architect warped through subspace 22746 | -1/Access_0 | Architect warped through subspace 22787 | -1/Access_0 | Architect warped through subspace 22823 | -1/Access_0 | Architect warped through subspace 22863 | -1/Access_0 | Architect warped through subspace 22870 | -1/Access_0 | Subspace Access Node disabled 22897 | -1/Access_0 | Architect warped through subspace 22955 | -1/Access_0 | Architect warped through subspace 22972 | -1/Access_0 | Subspace Access Node disabled 22982 | -1/Access_0 | Architect warped through subspace 23009 | -1/Access_0 | Architect warped through subspace 23043 | -1/Access_0 | Architect warped through subspace 23053 | -1/Access_0 | A6 warped into view 23066 | -1/Access_0 | Destroyed A6 23070 | -1/Access_0 | Architect warped through subspace 23102 | -1/Access_0 | Architect warped through subspace 23122 | -1/Access_0 | Architect warped through subspace 23142 | -1/Access_0 | Architect warped through subspace 23145 | -1/Access_0 | Subspace Access Node disabled 23156 | -1/Access_0 | Architect warped through subspace 23176 | -1/Access_0 | Architect warped through subspace 23195 | -1/Access_0 | Architect warped through subspace 23204 | -1/Access_0 | Architect warped through subspace 23212 | -1/Access_0 | Architect warped through subspace 23222 | -1/Access_0 | Architect warped through subspace 23242 | -1/Access_0 | Architect warped through subspace 23259 | -1/Access_0 | Architect warped through subspace 23270 | -1/Access_0 | Architect warped through subspace 23287 | -1/Access_0 | Subspace Access Node disabled 23354 | -1/Access_0 | Destroyed Architect 23355 | -1/Access_0 | Architect triggered a singularity event 23356 | -1/Access_0 | Released all parts (16) 23357 | -1/Access_0 | Found Hpw. Transdimensional Reconstructor 23357 | -1/Access_0 | Warped through subspace to slip node 23357 | -1/Access_0 | Discovered exit to Surface (range 8) 23361 | *** | Escaped singularity! Last Messages --------------- 23356_ Released Exp. Biometal Heavy Treads. 23356_ Released SHELL Armor. 23356_ Released Exp. Armor Integrity Analyzer. 23356_ Released Vortex Chain Reactor. 23356_ Released Exp. Phase Shifter. 23356_ Released Huge Storage Unit. 23356_ Released Adv. Weapon Cycler. 23356_ Released Exp. Targeting Computer. 23356_ Released AEGIS Remote Shield. 23356_ Released Potential Cannon. 23357_ A0_COM: 9. 23357_ Acquired Hpw. Transdimensional Reconstructor. 23357_ Warped through subspace, drawn to slip node. 23357_ EXIT=FOUND: SURFACE 23358_ A0_COM: 8. 23359_ A0_COM: 7. 23360_ A0_COM: 6. 23361_ A0_COM: 5. [Achievement: Planet Killer] [Achievement: Superachiever] Map ----- +----------------------------------------------------+ | | | | | | | | | | | | | | | | | | | | | | | | | | | | | | | | | ?????????????????????????????????????????????????? | | ?????????????????????????????????????????????????? | | ?????????????????????????????????????????????????? | | ?????????????????????????????????????????????????? | | ?????????????????????????????????????????????????? | | ?????????????????????????????????????????????????? | | ????????????????????????###??????????????????????? | | ???????????????????????## ##?????????????????????? | | ???????????????????????# #?????????????????????? | | ???????????????????????# @ #?????????????????????? | | ??????????????????????## #?????????????????????? | | ??????????????????????# #?????????????????????? | | ??????????????????????# ##?????????????????????? | | ??????????????????????## #?????????????????????? | | ??????????????????????# #?????????????????????? | | ??????????????????????# ##?????????????????????? | | ??????????????????????# < #?????????????????????? | | ??????????????????????# ##?????????????????????? | | ??????????????????????## #??????????????????????? | | ???????????????????????####??????????????????????? | | ?????????????????????????????????????????????????? | | ?????????????????????????????????????????????????? | | ?????????????????????????????????????????????????? | | ?????????????????????????????????????????????????? | | ?????????????????????????????????????????????????? | | ?????????????????????????????????????????????????? | | ?????????????????????????????????????????????????? | | ?????????????????????????????????????????????????? | | ?????????????????????????????????????????????????? | | ?????????????????????????????????????????????????? | | ?????????????????????????????????????????????????? | | ?????????????????????????????????????????????????? | | ?????????????????????????????????????????????????? | | ?????????????????????????????????????????????????? | +----------------------------------------------------+ Best States ------------- Heat Dissipation 252 Energy Generation 103 Energy Capacity 965 Matter Stores 300 Matter Capacity 700 Sight Range 22 Robot Scan Range 20 Terrain Scan Range 30 Terrain Scan Density 1210 Cloak Strength 2 Armor Coverage 3000 Resistance: KI 35 Resistance: TH 35 Resistance: EX 35 Resistance: EM 35 Resistance: I 35 Resistance: S 35 Resistance: P 35 Propulsion Shielding 90 Point Defense Rating 240 Weapon Cycling 25 Phase Shifting 20 Evasion (%) 65 Targeting Accuracy 12 Melee Accuracy 8 Armor Integrity Analysis 50 Recoil Reduction 7 Matter Filtering 50 Energy Filtering 30 Offensive Hacking 78 Defensive Hacking 20 Item Schematics ----------------- Huge Storage Unit | -10/Materials | Hacked Med. Storage Unit | -10/Materials | Hacked Hrd. Heavy Armor Plating | -8/Storage | Hacked Enh. Optical Array | -8/Storage | Hacked Imp. Cooling System | -8/Storage | Hacked Powered Armor | -7/Factory | Hacked Combat Drone Bay | -7/Data Miner | Free Lgt. Regenerative Plating | -7/Data Miner | Free Cmb. Gravmag System | -7/Data Miner | Free Triangulator | -7/Data Miner | Free Exp. Targeting Computer | -7/Data Miner | Free Plasma Sword | -7/Data Miner | Free Cloaking Device | -7/Data Miner | Free Cld. VTOL Module | -6/Factory | Scanalyzed Impulse Thruster Array | -5/Factory | Hacked Exp. Terrain Scanner | -5/Factory | Hacked Adv. Cloaking Device | -4/Factory | Hacked Exp. Terrain Scan Processor | -4/Factory | Hacked Exp. Propulsion Shielding | -4/Factory | Hacked Exp. Hacking Suite | -4/Factory | Hacked Mic. Fission Core | -4/Factory | Hacked Assault Drone Bay | -4/Zhirov | Free Exp. Heat Sink | -4/Zhirov | Free Exp. Optical Array | -4/Zhirov | Free Imp. Arc Thrower | -4/Zhirov | Free Exp. Sensor Array | -3/Research | Hacked Adv. Powered Armor | -3/Quarantine | Hacked Adv. Reaction Control System | -3/Quarantine | Hacked Enh. Force Lance | -3/Quarantine | Hacked Plasma Cutter | -3/Quarantine | Hacked Exp. Weapon Shielding | -3/Quarantine | Hacked Cld. Cesium-ion Thruster | -3/Quarantine | Hacked Exp. Cooling System | -3/Section 7 | Hacked Exp. ECM Suite | -3/Section 7 | Hacked Exp. Armor Integrity Analyzer | -2/Research | Hacked Exp. Biometal Heavy Treads | -2/Testing | Hacked Quantum Capacitor | -2/Testing | Hacked Hvy. Reflective Plating | -2/Testing | Hacked Adv. Force Field | -2/Testing | Hacked Hvy. Reactive Plating | -2/Testing | Hacked Robot Schematics ------------------ S-27 Virus | -7/Data Miner | Free G-50 Soldier | -7/Data Miner | Free G-67 Veteran | -7/Data Miner | Free L-41 Fighter | -7/Data Miner | Free H-66 Slayer | -7/Data Miner | Free P-70 Sage | -7/Data Miner | Free I-36 Angel | -7/Data Miner | Free I-47 Archangel | -7/Data Miner | Free M-36 Artificer | -3/Quarantine | Hacked P-80 Master | -3/Quarantine | Hacked Fabricated ------------ Field Propulsion Drive | x2 | -7/Factory | Preloaded Triangulator | x1 | -6/Factory Impulse Thruster Array | x1 | -5/Factory Exp. Terrain Scanner | x1 | -4/Factory Exp. Terrain Scan Processor | x1 | -4/Factory Exp. Terrain Scanner | x1 | -4/Factory Mic. Fission Core | x2 | -3/Research Exp. Sensor Array | x1 | -3/Research Exp. Biometal Heavy Treads | x1 | -2/Testing Exp. Biometal Heavy Treads | x1 | -2/Testing Exp. Biometal Heavy Treads | x1 | -2/Testing Huge Storage Unit | x1 | -2/Testing Exp. Armor Integrity Analyzer | x1 | -1/Access Alien Tech Used ----------------- Dimensional Node Initializer Integrated Dissipator Transdimensional Reconstructor Matter Drive Integrated Mediator Spacefold Activator Integrated Singularity Reactor Integrated Heat Negator LRC Armor Core Expander Subatomic Replicator High-powered Transdimensional Reconstructor Achievements -------------- Planet Killer Poison In The Code Superachiever Whoosh! Challenges ------------ None Game ------ Seed GodTrackerFemtoactuators Manual? 0 Play Time 06:52:02 Cumulative 386.5 hours Start 2021.06.09 @ 14:58:37 End 2021.06.11 @ 18:44:04 Sessions 5 Manual Loads 0 Difficulty Explorer Special Mode None Game No. 362 Rogue 146 Adventurer 112 Explorer 104 Win Type 6 Total 26 Types 18/0/5/2/0/0/1/0/0 Lore% 84 Gallery% 90 Achievement% 76 Wizard Run 0 Options --------- ASCII 0 Keyboard 0 Movement Numpad Keybinds 0 Fullscreen 2 Font 18/TerminusBold Map View 76x50 Tactical HUD 1 Map Filters NONE Filters NONE Steam X RUN: 5ad12363-69bb-4e7b-9789-69cf0cf92632